Workbook

Sheet HeroPowerUpConfig
A1: ID | B1: HeroLevel | C1: jingjie1 | D1: jingjie2 | E1: jingjie3 | F1: jingjieLanIDs | M1: levelUpExp | N1: DujieLevelbattleID | O1: DujieRateviaBattle | P1: DujieMustItemIDs | Q1: DujieMustItemValues | R1: DujieItemIDs | S1: DujieItemValues | T1: LeijieDamages | U1: HPFactor | V1: ATKFactor | W1: DEFFactor | X1: MPFactor | Y1: HudunFactor | Z1: defK | AA1: ShenshiMax | AB1: AutoXiuwei | AC1: FailureExpReduce
A2: int | B2: int | C2: int | D2: int | E2: int | F2: int[] | M2: int | N2: int | O2: int | P2: int[] | Q2: int[] | R2: int[] | S2: int[] | T2: int[] | U2: float | V2: float | W2: float | X2: float | Y2: float | Z2: int | AA2: int | AB2: int | AC2: int
AD3: =SUM(AD5:AD304) -> 1211188 | AE3: =AD3/60 -> 20186.46667 | AF3: =AE3/60 -> 336.4411111 | AG3: =AF3/12 -> 28.03675926
A4: ID | B4: 玩家修为境界（等级） | C4: 大境界ID | D4: 中境界ID | E4: 小境界ID | F4: 境界语言表ID | G4: 境界名称1 | H4: 境界名称2 | I4: 境界名称3 | M4: 升级所需修为值 （-1代表最大等级) | N4: 渡劫必须战斗ID | O4: 战斗增加渡劫几率 | P4: 渡劫必需道具ID | Q4: 渡劫必需道具数量 | R4: 渡劫选有道具IDs | S4: 渡劫选有道具数量 | T4: 雷劫伤害 要填下限和上限 | U4: 生命倍率 | V4: 攻击倍率 | W4: 防御倍率 | X4: 法力倍率 | Y4: 护盾倍率 | Z4: 防御系数K | AA4: 神识上限 | AB4: 每秒获得的修为值 | AC4: 雷劫失败扣除的当前等级修为百分比 | AD4: 吐纳时长 | AE4: 分钟 | AF4: 小时 | AG4: 天（每天12小时）
A5: 1 | B5: 1 | C5: 1 | D5: 1 | E5: =I5 -> 1 | F5: =_xlfn.TEXTJOIN(";",1,J5:L5) -> 225;235;238 | G5: 筑基期 | H5: 前 | I5: 1 | J5: 225 | K5: 235 | L5: 238 | M5: =INT(0.1*AB5*AD5)*10 -> 200 | N5: =IF(I5=10,100001,-1) -> -1 | O5: =IF(N5=-1,-1,20) -> -1 | P5: =IF(I5=10,1002,-1) -> -1 | Q5: =IF(P5=-1,-1,100) -> -1 | R5: =IF(I5=10,"1001;1002;1004",-1) -> -1 | S5: =IF(R5=-1,-1,"100;200;300") -> -1 | T5: =IF(G5=G6,0,CONCATENATE(B5*100,";",B5*150)) -> 0 | U5: =[1]升级!$B2/[2]HeroModelConfig!$M$5 -> 20 | V5: =[1]升级!$C2/[2]HeroModelConfig!$N$5 -> 1 | W5: =[1]升级!$D2/[2]HeroModelConfig!$O$5 -> 1 | X5: 1 | Y5: =[1]升级!$J2/[2]HeroModelConfig!$P$5 -> 0 | Z5: =[1]主表!$E3 -> 100 | AA5: =[1]升级!$H2 -> 500 | AB5: 10 | AC5: -1 | AD5: =ROUND(10^(B5*0.01+1.3),0) -> 20
A6: 2 | B6: 2 | C6: 1 | D6: 1 | E6: =I6 -> 2 | F6: =_xlfn.TEXTJOIN(";",1,J6:L6) -> 225;235;239 | G6: 筑基期 | H6: 前 | I6: 2 | J6: 225 | K6: 235 | L6: 239 | M6: =INT(0.1*AB6*AD6)*10 -> 300 | N6: =IF(I6=10,100001,-1) -> -1 | O6: =IF(N6=-1,-1,20) -> -1 | P6: =IF(I6=10,1002,-1) -> -1 | Q6: =IF(P6=-1,-1,100) -> -1 | R6: =IF(I6=10,"1001;1002;1004",-1) -> -1 | S6: =IF(R6=-1,-1,"100;200;300") -> -1 | T6: =IF(G6=G7,0,CONCATENATE(B6*100,";",B6*150)) -> 0 | U6: =[1]升级!$B3/[2]HeroModelConfig!$M$5 -> 20.4 | V6: =[1]升级!$C3/[2]HeroModelConfig!$N$5 -> 1.02 | W6: =[1]升级!$D3/[2]HeroModelConfig!$O$5 -> 1.02 | X6: 1 | Y6: =[1]升级!$J3/[2]HeroModelConfig!$P$5 -> 0 | Z6: =[1]主表!$E4 -> 103 | AA6: =[1]升级!$H3 -> 500 | AB6: 10 | AC6: -1 | AD6: =MAX(AD5+10,ROUND(10^(B6*0.01+1.405),0)) -> 30
A7: 3 | B7: 3 | C7: 1 | D7: 1 | E7: 3 | F7: 225;235;240 | G7: 筑基期 | H7: 前 | I7: 3 | J7: 225 | K7: 235 | L7: 240 | M7: 400 | N7: -1 | O7: -1 | P7: -1 | Q7: -1 | R7: -1 | S7: -1 | T7: 0 | U7: =[1]升级!$B4/[2]HeroModelConfig!$M$5 -> 20.8 | V7: =[1]升级!$C4/[2]HeroModelConfig!$N$5 -> 1.04 | W7: =[1]升级!$D4/[2]HeroModelConfig!$O$5 -> 1.04 | X7: 1 | Y7: =[1]升级!$J4/[2]HeroModelConfig!$P$5 -> 0 | Z7: =[1]主表!$E5 -> 105 | AA7: =[1]升级!$H4 -> 500 | AB7: 10 | AC7: -1 | AD7: =MAX(AD6+10,ROUND(10^(B7*0.01+1.405),0)) -> 40
A8: 4 | B8: 4 | C8: 1 | D8: 1 | E8: 4 | F8: 225;235;241 | G8: 筑基期 | H8: 前 | I8: 4 | J8: 225 | K8: 235 | L8: 241 | M8: 500 | N8: -1 | O8: -1 | P8: -1 | Q8: -1 | R8: -1 | S8: -1 | T8: 0 | U8: =[1]升级!$B5/[2]HeroModelConfig!$M$5 -> 21.2 | V8: =[1]升级!$C5/[2]HeroModelConfig!$N$5 -> 1.06 | W8: =[1]升级!$D5/[2]HeroModelConfig!$O$5 -> 1.06 | X8: 1 | Y8: =[1]升级!$J5/[2]HeroModelConfig!$P$5 -> 0 | Z8: =[1]主表!$E6 -> 107 | AA8: =[1]升级!$H5 -> 500 | AB8: 10 | AC8: -1 | AD8: 50
A9: 5 | B9: 5 | C9: 1 | D9: 1 | E9: 5 | F9: 225;235;242 | G9: 筑基期 | H9: 前 | I9: 5 | J9: 225 | K9: 235 | L9: 242 | M9: 600 | N9: -1 | O9: -1 | P9: -1 | Q9: -1 | R9: -1 | S9: -1 | T9: 0 | U9: =[1]升级!$B6/[2]HeroModelConfig!$M$5 -> 21.6 | V9: =[1]升级!$C6/[2]HeroModelConfig!$N$5 -> 1.08 | W9: =[1]升级!$D6/[2]HeroModelConfig!$O$5 -> 1.08 | X9: 1 | Y9: =[1]升级!$J6/[2]HeroModelConfig!$P$5 -> 0 | Z9: =[1]主表!$E7 -> 110 | AA9: =[1]升级!$H6 -> 500 | AB9: 10 | AC9: -1 | AD9: 60
A10: 6 | B10: 6 | C10: 1 | D10: 1 | E10: 6 | F10: 225;235;243 | G10: 筑基期 | H10: 前 | I10: 6 | J10: 225 | K10: 235 | L10: 243 | M10: 700 | N10: -1 | O10: -1 | P10: -1 | Q10: -1 | R10: -1 | S10: -1 | T10: 0 | U10: =[1]升级!$B7/[2]HeroModelConfig!$M$5 -> 22 | V10: =[1]升级!$C7/[2]HeroModelConfig!$N$5 -> 1.1 | W10: =[1]升级!$D7/[2]HeroModelConfig!$O$5 -> 1.1 | X10: 1 | Y10: =[1]升级!$J7/[2]HeroModelConfig!$P$5 -> 0 | Z10: =[1]主表!$E8 -> 112 | AA10: =[1]升级!$H7 -> 500 | AB10: 10 | AC10: -1 | AD10: 70
A11: 7 | B11: 7 | C11: 1 | D11: 1 | E11: 7 | F11: 225;235;244 | G11: 筑基期 | H11: 前 | I11: 7 | J11: 225 | K11: 235 | L11: 244 | M11: 800 | N11: -1 | O11: -1 | P11: -1 | Q11: -1 | R11: -1 | S11: -1 | T11: 0 | U11: =[1]升级!$B8/[2]HeroModelConfig!$M$5 -> 22.4 | V11: =[1]升级!$C8/[2]HeroModelConfig!$N$5 -> 1.12 | W11: =[1]升级!$D8/[2]HeroModelConfig!$O$5 -> 1.12 | X11: 1 | Y11: =[1]升级!$J8/[2]HeroModelConfig!$P$5 -> 0 | Z11: =[1]主表!$E9 -> 115 | AA11: =[1]升级!$H8 -> 500 | AB11: 10 | AC11: -1 | AD11: 80
A12: 8 | B12: 8 | C12: 1 | D12: 1 | E12: 8 | F12: 225;235;245 | G12: 筑基期 | H12: 前 | I12: 8 | J12: 225 | K12: 235 | L12: 245 | M12: 900 | N12: -1 | O12: -1 | P12: -1 | Q12: -1 | R12: -1 | S12: -1 | T12: 0 | U12: =[1]升级!$B9/[2]HeroModelConfig!$M$5 -> 22.8 | V12: =[1]升级!$C9/[2]HeroModelConfig!$N$5 -> 1.14 | W12: =[1]升级!$D9/[2]HeroModelConfig!$O$5 -> 1.14 | X12: 1 | Y12: =[1]升级!$J9/[2]HeroModelConfig!$P$5 -> 0 | Z12: =[1]主表!$E10 -> 117 | AA12: =[1]升级!$H9 -> 500 | AB12: 10 | AC12: -1 | AD12: 90
A13: 9 | B13: 9 | C13: 1 | D13: 1 | E13: 9 | F13: 225;235;246 | G13: 筑基期 | H13: 前 | I13: 9 | J13: 225 | K13: 235 | L13: 246 | M13: 1000 | N13: -1 | O13: -1 | P13: -1 | Q13: -1 | R13: -1 | S13: -1 | T13: 0 | U13: =[1]升级!$B10/[2]HeroModelConfig!$M$5 -> 23.2 | V13: =[1]升级!$C10/[2]HeroModelConfig!$N$5 -> 1.16 | W13: =[1]升级!$D10/[2]HeroModelConfig!$O$5 -> 1.16 | X13: 1 | Y13: =[1]升级!$J10/[2]HeroModelConfig!$P$5 -> 0 | Z13: =[1]主表!$E11 -> 119 | AA13: =[1]升级!$H10 -> 500 | AB13: 10 | AC13: -1 | AD13: 100
A14: 10 | B14: 10 | C14: 1 | D14: 1 | E14: 10 | F14: 225;235;247 | G14: 筑基期 | H14: 前 | I14: 10 | J14: 225 | K14: 235 | L14: 247 | M14: 1100 | N14: 100001 | O14: 20 | P14: 1301 | Q14: 1 | R14: 1301 | S14: 1 | T14: 0 | U14: =[1]升级!$B11/[2]HeroModelConfig!$M$5 -> 24.4 | V14: =[1]升级!$C11/[2]HeroModelConfig!$N$5 -> 1.22 | W14: =[1]升级!$D11/[2]HeroModelConfig!$O$5 -> 1.22 | X14: 1 | Y14: =[1]升级!$J11/[2]HeroModelConfig!$P$5 -> 0 | Z14: =[1]主表!$E12 -> 126 | AA14: =[1]升级!$H11 -> 500 | AB14: 10 | AC14: 20 | AD14: 110
A15: 11 | B15: 11 | C15: 1 | D15: 2 | E15: 1 | F15: 225;236;238 | G15: 筑基期 | H15: 中 | I15: 1 | J15: 225 | K15: 236 | L15: 238 | M15: 1320 | N15: -1 | O15: -1 | P15: -1 | Q15: -1 | R15: -1 | S15: -1 | T15: 0 | U15: =[1]升级!$B12/[2]HeroModelConfig!$M$5 -> 24.8 | V15: =[1]升级!$C12/[2]HeroModelConfig!$N$5 -> 1.24 | W15: =[1]升级!$D12/[2]HeroModelConfig!$O$5 -> 1.24 | X15: 1 | Y15: =[1]升级!$J12/[2]HeroModelConfig!$P$5 -> 0 | Z15: =[1]主表!$E13 -> 129 | AA15: =[1]升级!$H12 -> 500 | AB15: 11 | AC15: -1 | AD15: 120
A16: 12 | B16: 12 | C16: 1 | D16: 2 | E16: 2 | F16: 225;236;239 | G16: 筑基期 | H16: 中 | I16: 2 | J16: 225 | K16: 236 | L16: 239 | M16: 1430 | N16: -1 | O16: -1 | P16: -1 | Q16: -1 | R16: -1 | S16: -1 | T16: 0 | U16: =[1]升级!$B13/[2]HeroModelConfig!$M$5 -> 25.2 | V16: =[1]升级!$C13/[2]HeroModelConfig!$N$5 -> 1.26 | W16: =[1]升级!$D13/[2]HeroModelConfig!$O$5 -> 1.26 | X16: 1 | Y16: =[1]升级!$J13/[2]HeroModelConfig!$P$5 -> 0 | Z16: =[1]主表!$E14 -> 131 | AA16: =[1]升级!$H13 -> 500 | AB16: 11 | AC16: -1 | AD16: 130
A17: 13 | B17: 13 | C17: 1 | D17: 2 | E17: 3 | F17: 225;236;240 | G17: 筑基期 | H17: 中 | I17: 3 | J17: 225 | K17: 236 | L17: 240 | M17: 1540 | N17: -1 | O17: -1 | P17: -1 | Q17: -1 | R17: -1 | S17: -1 | T17: 0 | U17: =[1]升级!$B14/[2]HeroModelConfig!$M$5 -> 25.6 | V17: =[1]升级!$C14/[2]HeroModelConfig!$N$5 -> 1.28 | W17: =[1]升级!$D14/[2]HeroModelConfig!$O$5 -> 1.28 | X17: 1 | Y17: =[1]升级!$J14/[2]HeroModelConfig!$P$5 -> 0 | Z17: =[1]主表!$E15 -> 134 | AA17: =[1]升级!$H14 -> 500 | AB17: 11 | AC17: -1 | AD17: 140
A18: 14 | B18: 14 | C18: 1 | D18: 2 | E18: 4 | F18: 225;236;241 | G18: 筑基期 | H18: 中 | I18: 4 | J18: 225 | K18: 236 | L18: 241 | M18: 1650 | N18: -1 | O18: -1 | P18: -1 | Q18: -1 | R18: -1 | S18: -1 | T18: 0 | U18: =[1]升级!$B15/[2]HeroModelConfig!$M$5 -> 26 | V18: =[1]升级!$C15/[2]HeroModelConfig!$N$5 -> 1.3 | W18: =[1]升级!$D15/[2]HeroModelConfig!$O$5 -> 1.3 | X18: 1 | Y18: =[1]升级!$J15/[2]HeroModelConfig!$P$5 -> 0 | Z18: =[1]主表!$E16 -> 136 | AA18: =[1]升级!$H15 -> 500 | AB18: 11 | AC18: -1 | AD18: 150
A19: 15 | B19: 15 | C19: 1 | D19: 2 | E19: 5 | F19: 225;236;242 | G19: 筑基期 | H19: 中 | I19: 5 | J19: 225 | K19: 236 | L19: 242 | M19: 1760 | N19: -1 | O19: -1 | P19: -1 | Q19: -1 | R19: -1 | S19: -1 | T19: 0 | U19: =[1]升级!$B16/[2]HeroModelConfig!$M$5 -> 26.4 | V19: =[1]升级!$C16/[2]HeroModelConfig!$N$5 -> 1.32 | W19: =[1]升级!$D16/[2]HeroModelConfig!$O$5 -> 1.32 | X19: 1 | Y19: =[1]升级!$J16/[2]HeroModelConfig!$P$5 -> 0 | Z19: =[1]主表!$E17 -> 139 | AA19: =[1]升级!$H16 -> 500 | AB19: 11 | AC19: -1 | AD19: 160
A20: 16 | B20: 16 | C20: 1 | D20: 2 | E20: 6 | F20: 225;236;243 | G20: 筑基期 | H20: 中 | I20: 6 | J20: 225 | K20: 236 | L20: 243 | M20: 1870 | N20: -1 | O20: -1 | P20: -1 | Q20: -1 | R20: -1 | S20: -1 | T20: 0 | U20: =[1]升级!$B17/[2]HeroModelConfig!$M$5 -> 26.8 | V20: =[1]升级!$C17/[2]HeroModelConfig!$N$5 -> 1.34 | W20: =[1]升级!$D17/[2]HeroModelConfig!$O$5 -> 1.34 | X20: 1 | Y20: =[1]升级!$J17/[2]HeroModelConfig!$P$5 -> 0 | Z20: =[1]主表!$E18 -> 141 | AA20: =[1]升级!$H17 -> 500 | AB20: 11 | AC20: -1 | AD20: 170
A21: 17 | B21: 17 | C21: 1 | D21: 2 | E21: 7 | F21: 225;236;244 | G21: 筑基期 | H21: 中 | I21: 7 | J21: 225 | K21: 236 | L21: 244 | M21: 1980 | N21: -1 | O21: -1 | P21: -1 | Q21: -1 | R21: -1 | S21: -1 | T21: 0 | U21: =[1]升级!$B18/[2]HeroModelConfig!$M$5 -> 27.2 | V21: =[1]升级!$C18/[2]HeroModelConfig!$N$5 -> 1.36 | W21: =[1]升级!$D18/[2]HeroModelConfig!$O$5 -> 1.36 | X21: 1 | Y21: =[1]升级!$J18/[2]HeroModelConfig!$P$5 -> 0 | Z21: =[1]主表!$E19 -> 144 | AA21: =[1]升级!$H18 -> 500 | AB21: 11 | AC21: -1 | AD21: 180
A22: 18 | B22: 18 | C22: 1 | D22: 2 | E22: 8 | F22: 225;236;245 | G22: 筑基期 | H22: 中 | I22: 8 | J22: 225 | K22: 236 | L22: 245 | M22: 2090 | N22: -1 | O22: -1 | P22: -1 | Q22: -1 | R22: -1 | S22: -1 | T22: 0 | U22: =[1]升级!$B19/[2]HeroModelConfig!$M$5 -> 27.6 | V22: =[1]升级!$C19/[2]HeroModelConfig!$N$5 -> 1.38 | W22: =[1]升级!$D19/[2]HeroModelConfig!$O$5 -> 1.38 | X22: 1 | Y22: =[1]升级!$J19/[2]HeroModelConfig!$P$5 -> 0 | Z22: =[1]主表!$E20 -> 146 | AA22: =[1]升级!$H19 -> 500 | AB22: 11 | AC22: -1 | AD22: 190
A23: 19 | B23: 19 | C23: 1 | D23: 2 | E23: 9 | F23: 225;236;246 | G23: 筑基期 | H23: 中 | I23: 9 | J23: 225 | K23: 236 | L23: 246 | M23: 2200 | N23: -1 | O23: -1 | P23: -1 | Q23: -1 | R23: -1 | S23: -1 | T23: 0 | U23: =[1]升级!$B20/[2]HeroModelConfig!$M$5 -> 28 | V23: =[1]升级!$C20/[2]HeroModelConfig!$N$5 -> 1.4 | W23: =[1]升级!$D20/[2]HeroModelConfig!$O$5 -> 1.4 | X23: 1 | Y23: =[1]升级!$J20/[2]HeroModelConfig!$P$5 -> 0 | Z23: =[1]主表!$E21 -> 149 | AA23: =[1]升级!$H20 -> 500 | AB23: 11 | AC23: -1 | AD23: 200
A24: 20 | B24: 20 | C24: 1 | D24: 2 | E24: 10 | F24: 225;236;247 | G24: 筑基期 | H24: 中 | I24: 10 | J24: 225 | K24: 236 | L24: 247 | M24: 2310 | N24: 100001 | O24: 20 | P24: 1301 | Q24: 1 | R24: 1301;1302 | S24: 1;1 | T24: 0 | U24: =[1]升级!$B21/[2]HeroModelConfig!$M$5 -> 30 | V24: =[1]升级!$C21/[2]HeroModelConfig!$N$5 -> 1.5 | W24: =[1]升级!$D21/[2]HeroModelConfig!$O$5 -> 1.5 | X24: 1 | Y24: =[1]升级!$J21/[2]HeroModelConfig!$P$5 -> 0 | Z24: =[1]主表!$E22 -> 160 | AA24: =[1]升级!$H21 -> 500 | AB24: 11 | AC24: 20 | AD24: 210
A25: 21 | B25: 21 | C25: 1 | D25: 3 | E25: 1 | F25: 225;237;238 | G25: 筑基期 | H25: 后 | I25: 1 | J25: 225 | K25: 237 | L25: 238 | M25: 2640 | N25: -1 | O25: -1 | P25: -1 | Q25: -1 | R25: -1 | S25: -1 | T25: 0 | U25: =[1]升级!$B22/[2]HeroModelConfig!$M$5 -> 30.4 | V25: =[1]升级!$C22/[2]HeroModelConfig!$N$5 -> 1.52 | W25: =[1]升级!$D22/[2]HeroModelConfig!$O$5 -> 1.52 | X25: 1 | Y25: =[1]升级!$J22/[2]HeroModelConfig!$P$5 -> 0 | Z25: =[1]主表!$E23 -> 163 | AA25: =[1]升级!$H22 -> 500 | AB25: 12 | AC25: -1 | AD25: 220
A26: 22 | B26: 22 | C26: 1 | D26: 3 | E26: 2 | F26: 225;237;239 | G26: 筑基期 | H26: 后 | I26: 2 | J26: 225 | K26: 237 | L26: 239 | M26: 2760 | N26: -1 | O26: -1 | P26: -1 | Q26: -1 | R26: -1 | S26: -1 | T26: 0 | U26: =[1]升级!$B23/[2]HeroModelConfig!$M$5 -> 30.8 | V26: =[1]升级!$C23/[2]HeroModelConfig!$N$5 -> 1.54 | W26: =[1]升级!$D23/[2]HeroModelConfig!$O$5 -> 1.54 | X26: 1 | Y26: =[1]升级!$J23/[2]HeroModelConfig!$P$5 -> 0 | Z26: =[1]主表!$E24 -> 165 | AA26: =[1]升级!$H23 -> 500 | AB26: 12 | AC26: -1 | AD26: 230
A27: 23 | B27: 23 | C27: 1 | D27: 3 | E27: 3 | F27: 225;237;240 | G27: 筑基期 | H27: 后 | I27: 3 | J27: 225 | K27: 237 | L27: 240 | M27: 2880 | N27: -1 | O27: -1 | P27: -1 | Q27: -1 | R27: -1 | S27: -1 | T27: 0 | U27: =[1]升级!$B24/[2]HeroModelConfig!$M$5 -> 31.6 | V27: =[1]升级!$C24/[2]HeroModelConfig!$N$5 -> 1.58 | W27: =[1]升级!$D24/[2]HeroModelConfig!$O$5 -> 1.58 | X27: 1 | Y27: =[1]升级!$J24/[2]HeroModelConfig!$P$5 -> 0 | Z27: =[1]主表!$E25 -> 170 | AA27: =[1]升级!$H24 -> 500 | AB27: 12 | AC27: -1 | AD27: 240
A28: 24 | B28: 24 | C28: 1 | D28: 3 | E28: 4 | F28: 225;237;241 | G28: 筑基期 | H28: 后 | I28: 4 | J28: 225 | K28: 237 | L28: 241 | M28: 3000 | N28: -1 | O28: -1 | P28: -1 | Q28: -1 | R28: -1 | S28: -1 | T28: 0 | U28: =[1]升级!$B25/[2]HeroModelConfig!$M$5 -> 32 | V28: =[1]升级!$C25/[2]HeroModelConfig!$N$5 -> 1.6 | W28: =[1]升级!$D25/[2]HeroModelConfig!$O$5 -> 1.6 | X28: 1 | Y28: =[1]升级!$J25/[2]HeroModelConfig!$P$5 -> 0 | Z28: =[1]主表!$E26 -> 173 | AA28: =[1]升级!$H25 -> 500 | AB28: 12 | AC28: -1 | AD28: 250
A29: 25 | B29: 25 | C29: 1 | D29: 3 | E29: 5 | F29: 225;237;242 | G29: 筑基期 | H29: 后 | I29: 5 | J29: 225 | K29: 237 | L29: 242 | M29: 3120 | N29: -1 | O29: -1 | P29: -1 | Q29: -1 | R29: -1 | S29: -1 | T29: 0 | U29: =[1]升级!$B26/[2]HeroModelConfig!$M$5 -> 32.4 | V29: =[1]升级!$C26/[2]HeroModelConfig!$N$5 -> 1.62 | W29: =[1]升级!$D26/[2]HeroModelConfig!$O$5 -> 1.62 | X29: 1 | Y29: =[1]升级!$J26/[2]HeroModelConfig!$P$5 -> 0 | Z29: =[1]主表!$E27 -> 176 | AA29: =[1]升级!$H26 -> 500 | AB29: 12 | AC29: -1 | AD29: 260
A30: 26 | B30: 26 | C30: 1 | D30: 3 | E30: 6 | F30: 225;237;243 | G30: 筑基期 | H30: 后 | I30: 6 | J30: 225 | K30: 237 | L30: 243 | M30: 3240 | N30: -1 | O30: -1 | P30: -1 | Q30: -1 | R30: -1 | S30: -1 | T30: 0 | U30: =[1]升级!$B27/[2]HeroModelConfig!$M$5 -> 33.2 | V30: =[1]升级!$C27/[2]HeroModelConfig!$N$5 -> 1.66 | W30: =[1]升级!$D27/[2]HeroModelConfig!$O$5 -> 1.66 | X30: 1 | Y30: =[1]升级!$J27/[2]HeroModelConfig!$P$5 -> 0 | Z30: =[1]主表!$E28 -> 180 | AA30: =[1]升级!$H27 -> 500 | AB30: 12 | AC30: -1 | AD30: 270
A31: 27 | B31: 27 | C31: 1 | D31: 3 | E31: 7 | F31: 225;237;244 | G31: 筑基期 | H31: 后 | I31: 7 | J31: 225 | K31: 237 | L31: 244 | M31: 3360 | N31: -1 | O31: -1 | P31: -1 | Q31: -1 | R31: -1 | S31: -1 | T31: 0 | U31: =[1]升级!$B28/[2]HeroModelConfig!$M$5 -> 33.6 | V31: =[1]升级!$C28/[2]HeroModelConfig!$N$5 -> 1.68 | W31: =[1]升级!$D28/[2]HeroModelConfig!$O$5 -> 1.68 | X31: 1 | Y31: =[1]升级!$J28/[2]HeroModelConfig!$P$5 -> 0 | Z31: =[1]主表!$E29 -> 183 | AA31: =[1]升级!$H28 -> 500 | AB31: 12 | AC31: -1 | AD31: 280
A32: 28 | B32: 28 | C32: 1 | D32: 3 | E32: 8 | F32: 225;237;245 | G32: 筑基期 | H32: 后 | I32: 8 | J32: 225 | K32: 237 | L32: 245 | M32: 3480 | N32: -1 | O32: -1 | P32: -1 | Q32: -1 | R32: -1 | S32: -1 | T32: 0 | U32: =[1]升级!$B29/[2]HeroModelConfig!$M$5 -> 34 | V32: =[1]升级!$C29/[2]HeroModelConfig!$N$5 -> 1.7 | W32: =[1]升级!$D29/[2]HeroModelConfig!$O$5 -> 1.7 | X32: 1 | Y32: =[1]升级!$J29/[2]HeroModelConfig!$P$5 -> 0 | Z32: =[1]主表!$E30 -> 186 | AA32: =[1]升级!$H29 -> 500 | AB32: 12 | AC32: -1 | AD32: 290
A33: 29 | B33: 29 | C33: 1 | D33: 3 | E33: 9 | F33: 225;237;246 | G33: 筑基期 | H33: 后 | I33: 9 | J33: 225 | K33: 237 | L33: 246 | M33: 3600 | N33: -1 | O33: -1 | P33: -1 | Q33: -1 | R33: -1 | S33: -1 | T33: 0 | U33: =[1]升级!$B30/[2]HeroModelConfig!$M$5 -> 34.8 | V33: =[1]升级!$C30/[2]HeroModelConfig!$N$5 -> 1.74 | W33: =[1]升级!$D30/[2]HeroModelConfig!$O$5 -> 1.74 | X33: 1 | Y33: =[1]升级!$J30/[2]HeroModelConfig!$P$5 -> 0 | Z33: =[1]主表!$E31 -> 191 | AA33: =[1]升级!$H30 -> 500 | AB33: 12 | AC33: -1 | AD33: 300
A34: 30 | B34: 30 | C34: 1 | D34: 3 | E34: 10 | F34: 225;237;247 | G34: 筑基期 | H34: 后 | I34: 10 | J34: 225 | K34: 237 | L34: 247 | M34: 3720 | N34: 100001 | O34: 20 | P34: 1301 | Q34: 1 | R34: 1301;1302;1303 | S34: 1;1;1 | T34: 3000;4500 | U34: =[1]升级!$B31/[2]HeroModelConfig!$M$5 -> 39.2 | V34: =[1]升级!$C31/[2]HeroModelConfig!$N$5 -> 1.96 | W34: =[1]升级!$D31/[2]HeroModelConfig!$O$5 -> 1.96 | X34: 1 | Y34: =[1]升级!$J31/[2]HeroModelConfig!$P$5 -> 0 | Z34: =[1]主表!$E32 -> 216 | AA34: =[1]升级!$H31 -> 600 | AB34: 12 | AC34: 50 | AD34: 310
A35: 31 | B35: 31 | C35: 2 | D35: 4 | E35: 1 | F35: 226;235;238 | G35: 金丹期 | H35: 前 | I35: 1 | J35: 226 | K35: 235 | L35: 238 | M35: 4160 | N35: -1 | O35: -1 | P35: -1 | Q35: -1 | R35: =IF(I35=10,"1001;1002;1004",-1) -> -1 | S35: =IF(R35=-1,-1,"100;200;300") -> -1 | T35: =IF(G35=G36,0,CONCATENATE(B35*100,";",B35*150)) -> 0 | U35: =[1]升级!$B32/[2]HeroModelConfig!$M$5 -> 40 | V35: =[1]升级!$C32/[2]HeroModelConfig!$N$5 -> 2 | W35: =[1]升级!$D32/[2]HeroModelConfig!$O$5 -> 2 | X35: 1 | Y35: =[1]升级!$J32/[2]HeroModelConfig!$P$5 -> 0 | Z35: =[1]主表!$E33 -> 221 | AA35: =[1]升级!$H32 -> 600 | AB35: 13 | AC35: -1 | AD35: 320
A36: 32 | B36: 32 | C36: 2 | D36: 4 | E36: 2 | F36: 226;235;239 | G36: 金丹期 | H36: 前 | I36: 2 | J36: 226 | K36: 235 | L36: 239 | M36: 4290 | N36: -1 | O36: -1 | P36: -1 | Q36: -1 | R36: =IF(I36=10,"1001;1002;1004",-1) -> -1 | S36: -1 | T36: =IF(G36=G37,0,CONCATENATE(B36*100,";",B36*150)) -> 0 | U36: =[1]升级!$B33/[2]HeroModelConfig!$M$5 -> 40.8 | V36: =[1]升级!$C33/[2]HeroModelConfig!$N$5 -> 2.04 | W36: =[1]升级!$D33/[2]HeroModelConfig!$O$5 -> 2.04 | X36: 1 | Y36: =[1]升级!$J33/[2]HeroModelConfig!$P$5 -> 0 | Z36: =[1]主表!$E34 -> 226 | AA36: =[1]升级!$H33 -> 600 | AB36: 13 | AC36: -1 | AD36: 330
A37: 33 | B37: 33 | C37: 2 | D37: 4 | E37: 3 | F37: 226;235;240 | G37: 金丹期 | H37: 前 | I37: 3 | J37: 226 | K37: 235 | L37: 240 | M37: 4420 | N37: -1 | O37: -1 | P37: -1 | Q37: -1 | R37: -1 | S37: -1 | T37: 0 | U37: =[1]升级!$B34/[2]HeroModelConfig!$M$5 -> 41.2 | V37: =[1]升级!$C34/[2]HeroModelConfig!$N$5 -> 2.06 | W37: =[1]升级!$D34/[2]HeroModelConfig!$O$5 -> 2.06 | X37: 1 | Y37: =[1]升级!$J34/[2]HeroModelConfig!$P$5 -> 0 | Z37: =[1]主表!$E35 -> 229 | AA37: =[1]升级!$H34 -> 600 | AB37: 13 | AC37: -1 | AD37: 340
A38: 34 | B38: 34 | C38: 2 | D38: 4 | E38: 4 | F38: 226;235;241 | G38: 金丹期 | H38: 前 | I38: 4 | J38: 226 | K38: 235 | L38: 241 | M38: 4550 | N38: -1 | O38: -1 | P38: -1 | Q38: -1 | R38: -1 | S38: -1 | T38: 0 | U38: =[1]升级!$B35/[2]HeroModelConfig!$M$5 -> 42 | V38: =[1]升级!$C35/[2]HeroModelConfig!$N$5 -> 2.1 | W38: =[1]升级!$D35/[2]HeroModelConfig!$O$5 -> 2.1 | X38: 1 | Y38: =[1]升级!$J35/[2]HeroModelConfig!$P$5 -> 0 | Z38: =[1]主表!$E36 -> 234 | AA38: =[1]升级!$H35 -> 600 | AB38: 13 | AC38: -1 | AD38: 350
A39: 35 | B39: 35 | C39: 2 | D39: 4 | E39: 5 | F39: 226;235;242 | G39: 金丹期 | H39: 前 | I39: 5 | J39: 226 | K39: 235 | L39: 242 | M39: 4680 | N39: -1 | O39: -1 | P39: -1 | Q39: -1 | R39: -1 | S39: -1 | T39: 0 | U39: =[1]升级!$B36/[2]HeroModelConfig!$M$5 -> 42.8 | V39: =[1]升级!$C36/[2]HeroModelConfig!$N$5 -> 2.14 | W39: =[1]升级!$D36/[2]HeroModelConfig!$O$5 -> 2.14 | X39: 1 | Y39: =[1]升级!$J36/[2]HeroModelConfig!$P$5 -> 0 | Z39: =[1]主表!$E37 -> 239 | AA39: =[1]升级!$H36 -> 600 | AB39: 13 | AC39: -1 | AD39: 360
A40: 36 | B40: 36 | C40: 2 | D40: 4 | E40: 6 | F40: 226;235;243 | G40: 金丹期 | H40: 前 | I40: 6 | J40: 226 | K40: 235 | L40: 243 | M40: 4810 | N40: -1 | O40: -1 | P40: -1 | Q40: -1 | R40: -1 | S40: -1 | T40: 0 | U40: =[1]升级!$B37/[2]HeroModelConfig!$M$5 -> 43.2 | V40: =[1]升级!$C37/[2]HeroModelConfig!$N$5 -> 2.16 | W40: =[1]升级!$D37/[2]HeroModelConfig!$O$5 -> 2.16 | X40: 1 | Y40: =[1]升级!$J37/[2]HeroModelConfig!$P$5 -> 0 | Z40: =[1]主表!$E38 -> 242 | AA40: =[1]升级!$H37 -> 600 | AB40: 13 | AC40: -1 | AD40: 370
A41: 37 | B41: 37 | C41: 2 | D41: 4 | E41: 7 | F41: 226;235;244 | G41: 金丹期 | H41: 前 | I41: 7 | J41: 226 | K41: 235 | L41: 244 | M41: 4940 | N41: -1 | O41: -1 | P41: -1 | Q41: -1 | R41: -1 | S41: -1 | T41: 0 | U41: =[1]升级!$B38/[2]HeroModelConfig!$M$5 -> 44 | V41: =[1]升级!$C38/[2]HeroModelConfig!$N$5 -> 2.2 | W41: =[1]升级!$D38/[2]HeroModelConfig!$O$5 -> 2.2 | X41: 1 | Y41: =[1]升级!$J38/[2]HeroModelConfig!$P$5 -> 0 | Z41: =[1]主表!$E39 -> 247 | AA41: =[1]升级!$H38 -> 600 | AB41: 13 | AC41: -1 | AD41: 380
A42: 38 | B42: 38 | C42: 2 | D42: 4 | E42: 8 | F42: 226;235;245 | G42: 金丹期 | H42: 前 | I42: 8 | J42: 226 | K42: 235 | L42: 245 | M42: 5070 | N42: -1 | O42: -1 | P42: -1 | Q42: -1 | R42: -1 | S42: -1 | T42: 0 | U42: =[1]升级!$B39/[2]HeroModelConfig!$M$5 -> 44.8 | V42: =[1]升级!$C39/[2]HeroModelConfig!$N$5 -> 2.24 | W42: =[1]升级!$D39/[2]HeroModelConfig!$O$5 -> 2.24 | X42: 1 | Y42: =[1]升级!$J39/[2]HeroModelConfig!$P$5 -> 0 | Z42: =[1]主表!$E40 -> 252 | AA42: =[1]升级!$H39 -> 600 | AB42: 13 | AC42: -1 | AD42: 390
A43: 39 | B43: 39 | C43: 2 | D43: 4 | E43: 9 | F43: 226;235;246 | G43: 金丹期 | H43: 前 | I43: 9 | J43: 226 | K43: 235 | L43: 246 | M43: 5200 | N43: -1 | O43: -1 | P43: -1 | Q43: -1 | R43: -1 | S43: -1 | T43: 0 | U43: =[1]升级!$B40/[2]HeroModelConfig!$M$5 -> 45.6 | V43: =[1]升级!$C40/[2]HeroModelConfig!$N$5 -> 2.28 | W43: =[1]升级!$D40/[2]HeroModelConfig!$O$5 -> 2.28 | X43: 1 | Y43: =[1]升级!$J40/[2]HeroModelConfig!$P$5 -> 0 | Z43: =[1]主表!$E41 -> 258 | AA43: =[1]升级!$H40 -> 600 | AB43: 13 | AC43: -1 | AD43: 400
A44: 40 | B44: 40 | C44: 2 | D44: 4 | E44: 10 | F44: 226;235;247 | G44: 金丹期 | H44: 前 | I44: 10 | J44: 226 | K44: 235 | L44: 247 | M44: 5330 | N44: 100001 | O44: 20 | P44: 1301 | Q44: 1 | R44: 1301 | S44: 1 | T44: 0 | U44: =[1]升级!$B41/[2]HeroModelConfig!$M$5 -> 48.4 | V44: =[1]升级!$C41/[2]HeroModelConfig!$N$5 -> 2.42 | W44: =[1]升级!$D41/[2]HeroModelConfig!$O$5 -> 2.42 | X44: 1 | Y44: =[1]升级!$J41/[2]HeroModelConfig!$P$5 -> 0 | Z44: =[1]主表!$E42 -> 274 | AA44: =[1]升级!$H41 -> 600 | AB44: 13 | AC44: 20 | AD44: 410
A45: 41 | B45: 41 | C45: 2 | D45: 5 | E45: 1 | F45: 226;236;238 | G45: 金丹期 | H45: 中 | I45: 1 | J45: 226 | K45: 236 | L45: 238 | M45: 5880 | N45: -1 | O45: -1 | P45: -1 | Q45: -1 | R45: =IF(I45=10,"1001;1002;1004",-1) -> -1 | S45: -1 | T45: 0 | U45: =[1]升级!$B42/[2]HeroModelConfig!$M$5 -> 49.2 | V45: =[1]升级!$C42/[2]HeroModelConfig!$N$5 -> 2.46 | W45: =[1]升级!$D42/[2]HeroModelConfig!$O$5 -> 2.46 | X45: 1 | Y45: =[1]升级!$J42/[2]HeroModelConfig!$P$5 -> 0 | Z45: =[1]主表!$E43 -> 280 | AA45: =[1]升级!$H42 -> 600 | AB45: 14 | AC45: -1 | AD45: 420
A46: 42 | B46: 42 | C46: 2 | D46: 5 | E46: 2 | F46: 226;236;239 | G46: 金丹期 | H46: 中 | I46: 2 | J46: 226 | K46: 236 | L46: 239 | M46: 6020 | N46: -1 | O46: -1 | P46: -1 | Q46: -1 | R46: -1 | S46: -1 | T46: 0 | U46: =[1]升级!$B43/[2]HeroModelConfig!$M$5 -> 50 | V46: =[1]升级!$C43/[2]HeroModelConfig!$N$5 -> 2.5 | W46: =[1]升级!$D43/[2]HeroModelConfig!$O$5 -> 2.5 | X46: 1 | Y46: =[1]升级!$J43/[2]HeroModelConfig!$P$5 -> 0 | Z46: =[1]主表!$E44 -> 285 | AA46: =[1]升级!$H43 -> 600 | AB46: 14 | AC46: -1 | AD46: 430
A47: 43 | B47: 43 | C47: 2 | D47: 5 | E47: 3 | F47: 226;236;240 | G47: 金丹期 | H47: 中 | I47: 3 | J47: 226 | K47: 236 | L47: 240 | M47: 6160 | N47: -1 | O47: -1 | P47: -1 | Q47: -1 | R47: -1 | S47: -1 | T47: 0 | U47: =[1]升级!$B44/[2]HeroModelConfig!$M$5 -> 50.8 | V47: =[1]升级!$C44/[2]HeroModelConfig!$N$5 -> 2.54 | W47: =[1]升级!$D44/[2]HeroModelConfig!$O$5 -> 2.54 | X47: 1 | Y47: =[1]升级!$J44/[2]HeroModelConfig!$P$5 -> 0 | Z47: =[1]主表!$E45 -> 290 | AA47: =[1]升级!$H44 -> 600 | AB47: 14 | AC47: -1 | AD47: 440
A48: 44 | B48: 44 | C48: 2 | D48: 5 | E48: 4 | F48: 226;236;241 | G48: 金丹期 | H48: 中 | I48: 4 | J48: 226 | K48: 236 | L48: 241 | M48: 6300 | N48: -1 | O48: -1 | P48: -1 | Q48: -1 | R48: -1 | S48: -1 | T48: 0 | U48: =[1]升级!$B45/[2]HeroModelConfig!$M$5 -> 52 | V48: =[1]升级!$C45/[2]HeroModelConfig!$N$5 -> 2.6 | W48: =[1]升级!$D45/[2]HeroModelConfig!$O$5 -> 2.6 | X48: 1 | Y48: =[1]升级!$J45/[2]HeroModelConfig!$P$5 -> 0 | Z48: =[1]主表!$E46 -> 298 | AA48: =[1]升级!$H45 -> 600 | AB48: 14 | AC48: -1 | AD48: 450
A49: 45 | B49: 45 | C49: 2 | D49: 5 | E49: 5 | F49: 226;236;242 | G49: 金丹期 | H49: 中 | I49: 5 | J49: 226 | K49: 236 | L49: 242 | M49: 6440 | N49: -1 | O49: -1 | P49: -1 | Q49: -1 | R49: -1 | S49: -1 | T49: 0 | U49: =[1]升级!$B46/[2]HeroModelConfig!$M$5 -> 52.8 | V49: =[1]升级!$C46/[2]HeroModelConfig!$N$5 -> 2.64 | W49: =[1]升级!$D46/[2]HeroModelConfig!$O$5 -> 2.64 | X49: 1 | Y49: =[1]升级!$J46/[2]HeroModelConfig!$P$5 -> 0 | Z49: =[1]主表!$E47 -> 304 | AA49: =[1]升级!$H46 -> 600 | AB49: 14 | AC49: -1 | AD49: 460
A50: 46 | B50: 46 | C50: 2 | D50: 5 | E50: 6 | F50: 226;236;243 | G50: 金丹期 | H50: 中 | I50: 6 | J50: 226 | K50: 236 | L50: 243 | M50: 6580 | N50: -1 | O50: -1 | P50: -1 | Q50: -1 | R50: -1 | S50: -1 | T50: 0 | U50: =[1]升级!$B47/[2]HeroModelConfig!$M$5 -> 53.6 | V50: =[1]升级!$C47/[2]HeroModelConfig!$N$5 -> 2.68 | W50: =[1]升级!$D47/[2]HeroModelConfig!$O$5 -> 2.68 | X50: 1 | Y50: =[1]升级!$J47/[2]HeroModelConfig!$P$5 -> 0 | Z50: =[1]主表!$E48 -> 309 | AA50: =[1]升级!$H47 -> 600 | AB50: 14 | AC50: -1 | AD50: 470
A51: 47 | B51: 47 | C51: 2 | D51: 5 | E51: 7 | F51: 226;236;244 | G51: 金丹期 | H51: 中 | I51: 7 | J51: 226 | K51: 236 | L51: 244 | M51: 6720 | N51: -1 | O51: -1 | P51: -1 | Q51: -1 | R51: -1 | S51: -1 | T51: 0 | U51: =[1]升级!$B48/[2]HeroModelConfig!$M$5 -> 54.4 | V51: =[1]升级!$C48/[2]HeroModelConfig!$N$5 -> 2.72 | W51: =[1]升级!$D48/[2]HeroModelConfig!$O$5 -> 2.72 | X51: 1 | Y51: =[1]升级!$J48/[2]HeroModelConfig!$P$5 -> 0 | Z51: =[1]主表!$E49 -> 315 | AA51: =[1]升级!$H48 -> 600 | AB51: 14 | AC51: -1 | AD51: 480
A52: 48 | B52: 48 | C52: 2 | D52: 5 | E52: 8 | F52: 226;236;245 | G52: 金丹期 | H52: 中 | I52: 8 | J52: 226 | K52: 236 | L52: 245 | M52: 6860 | N52: -1 | O52: -1 | P52: -1 | Q52: -1 | R52: -1 | S52: -1 | T52: 0 | U52: =[1]升级!$B49/[2]HeroModelConfig!$M$5 -> 55.2 | V52: =[1]升级!$C49/[2]HeroModelConfig!$N$5 -> 2.76 | W52: =[1]升级!$D49/[2]HeroModelConfig!$O$5 -> 2.76 | X52: 1 | Y52: =[1]升级!$J49/[2]HeroModelConfig!$P$5 -> 0 | Z52: =[1]主表!$E50 -> 320 | AA52: =[1]升级!$H49 -> 600 | AB52: 14 | AC52: -1 | AD52: 490
A53: 49 | B53: 49 | C53: 2 | D53: 5 | E53: 9 | F53: 226;236;246 | G53: 金丹期 | H53: 中 | I53: 9 | J53: 226 | K53: 236 | L53: 246 | M53: 7000 | N53: -1 | O53: -1 | P53: -1 | Q53: -1 | R53: -1 | S53: -1 | T53: 0 | U53: =[1]升级!$B50/[2]HeroModelConfig!$M$5 -> 56.4 | V53: =[1]升级!$C50/[2]HeroModelConfig!$N$5 -> 2.82 | W53: =[1]升级!$D50/[2]HeroModelConfig!$O$5 -> 2.82 | X53: 1 | Y53: =[1]升级!$J50/[2]HeroModelConfig!$P$5 -> 0 | Z53: =[1]主表!$E51 -> 328 | AA53: =[1]升级!$H50 -> 600 | AB53: 14 | AC53: -1 | AD53: 500
A54: 50 | B54: 50 | C54: 2 | D54: 5 | E54: 10 | F54: 226;236;247 | G54: 金丹期 | H54: 中 | I54: 10 | J54: 226 | K54: 236 | L54: 247 | M54: 7140 | N54: 100001 | O54: 20 | P54: 1301 | Q54: 1 | R54: 1301;1302 | S54: 1;1 | T54: 0 | U54: =[1]升级!$B51/[2]HeroModelConfig!$M$5 -> 60 | V54: =[1]升级!$C51/[2]HeroModelConfig!$N$5 -> 3 | W54: =[1]升级!$D51/[2]HeroModelConfig!$O$5 -> 3 | X54: 1 | Y54: =[1]升级!$J51/[2]HeroModelConfig!$P$5 -> 0 | Z54: =[1]主表!$E52 -> 350 | AA54: =[1]升级!$H51 -> 600 | AB54: 14 | AC54: 20 | AD54: 510
A55: 51 | B55: 51 | C55: 2 | D55: 6 | E55: 1 | F55: 226;237;238 | G55: 金丹期 | H55: 后 | I55: 1 | J55: 226 | K55: 237 | L55: 238 | M55: 7800 | N55: -1 | O55: -1 | P55: -1 | Q55: -1 | R55: =IF(I55=10,"1001;1002;1004",-1) -> -1 | S55: -1 | T55: 0 | U55: =[1]升级!$B52/[2]HeroModelConfig!$M$5 -> 60.8 | V55: =[1]升级!$C52/[2]HeroModelConfig!$N$5 -> 3.04 | W55: =[1]升级!$D52/[2]HeroModelConfig!$O$5 -> 3.04 | X55: 1 | Y55: =[1]升级!$J52/[2]HeroModelConfig!$P$5 -> 0 | Z55: =[1]主表!$E53 -> 356 | AA55: =[1]升级!$H52 -> 600 | AB55: 15 | AC55: -1 | AD55: 520
A56: 52 | B56: 52 | C56: 2 | D56: 6 | E56: 2 | F56: 226;237;239 | G56: 金丹期 | H56: 后 | I56: 2 | J56: 226 | K56: 237 | L56: 239 | M56: 7950 | N56: -1 | O56: -1 | P56: -1 | Q56: -1 | R56: -1 | S56: -1 | T56: 0 | U56: =[1]升级!$B53/[2]HeroModelConfig!$M$5 -> 62 | V56: =[1]升级!$C53/[2]HeroModelConfig!$N$5 -> 3.1 | W56: =[1]升级!$D53/[2]HeroModelConfig!$O$5 -> 3.1 | X56: 1 | Y56: =[1]升级!$J53/[2]HeroModelConfig!$P$5 -> 0 | Z56: =[1]主表!$E54 -> 364 | AA56: =[1]升级!$H53 -> 600 | AB56: 15 | AC56: -1 | AD56: 530
A57: 53 | B57: 53 | C57: 2 | D57: 6 | E57: 3 | F57: 226;237;240 | G57: 金丹期 | H57: 后 | I57: 3 | J57: 226 | K57: 237 | L57: 240 | M57: 8100 | N57: -1 | O57: -1 | P57: -1 | Q57: -1 | R57: -1 | S57: -1 | T57: 0 | U57: =[1]升级!$B54/[2]HeroModelConfig!$M$5 -> 62.8 | V57: =[1]升级!$C54/[2]HeroModelConfig!$N$5 -> 3.14 | W57: =[1]升级!$D54/[2]HeroModelConfig!$O$5 -> 3.14 | X57: 1 | Y57: =[1]升级!$J54/[2]HeroModelConfig!$P$5 -> 0 | Z57: =[1]主表!$E55 -> 369 | AA57: =[1]升级!$H54 -> 600 | AB57: 15 | AC57: -1 | AD57: 540
A58: 54 | B58: 54 | C58: 2 | D58: 6 | E58: 4 | F58: 226;237;241 | G58: 金丹期 | H58: 后 | I58: 4 | J58: 226 | K58: 237 | L58: 241 | M58: 8250 | N58: -1 | O58: -1 | P58: -1 | Q58: -1 | R58: -1 | S58: -1 | T58: 0 | U58: =[1]升级!$B55/[2]HeroModelConfig!$M$5 -> 64 | V58: =[1]升级!$C55/[2]HeroModelConfig!$N$5 -> 3.2 | W58: =[1]升级!$D55/[2]HeroModelConfig!$O$5 -> 3.2 | X58: 1 | Y58: =[1]升级!$J55/[2]HeroModelConfig!$P$5 -> 0 | Z58: =[1]主表!$E56 -> 378 | AA58: =[1]升级!$H55 -> 600 | AB58: 15 | AC58: -1 | AD58: 550
A59: 55 | B59: 55 | C59: 2 | D59: 6 | E59: 5 | F59: 226;237;242 | G59: 金丹期 | H59: 后 | I59: 5 | J59: 226 | K59: 237 | L59: 242 | M59: 8400 | N59: -1 | O59: -1 | P59: -1 | Q59: -1 | R59: -1 | S59: -1 | T59: 0 | U59: =[1]升级!$B56/[2]HeroModelConfig!$M$5 -> 65.2 | V59: =[1]升级!$C56/[2]HeroModelConfig!$N$5 -> 3.26 | W59: =[1]升级!$D56/[2]HeroModelConfig!$O$5 -> 3.26 | X59: 1 | Y59: =[1]升级!$J56/[2]HeroModelConfig!$P$5 -> 0 | Z59: =[1]主表!$E57 -> 386 | AA59: =[1]升级!$H56 -> 600 | AB59: 15 | AC59: -1 | AD59: 560
A60: 56 | B60: 56 | C60: 2 | D60: 6 | E60: 6 | F60: 226;237;243 | G60: 金丹期 | H60: 后 | I60: 6 | J60: 226 | K60: 237 | L60: 243 | M60: 8550 | N60: -1 | O60: -1 | P60: -1 | Q60: -1 | R60: -1 | S60: -1 | T60: 0 | U60: =[1]升级!$B57/[2]HeroModelConfig!$M$5 -> 66 | V60: =[1]升级!$C57/[2]HeroModelConfig!$N$5 -> 3.3 | W60: =[1]升级!$D57/[2]HeroModelConfig!$O$5 -> 3.3 | X60: 1 | Y60: =[1]升级!$J57/[2]HeroModelConfig!$P$5 -> 0 | Z60: =[1]主表!$E58 -> 392 | AA60: =[1]升级!$H57 -> 600 | AB60: 15 | AC60: -1 | AD60: 570
A61: 57 | B61: 57 | C61: 2 | D61: 6 | E61: 7 | F61: 226;237;244 | G61: 金丹期 | H61: 后 | I61: 7 | J61: 226 | K61: 237 | L61: 244 | M61: 8700 | N61: -1 | O61: -1 | P61: -1 | Q61: -1 | R61: -1 | S61: -1 | T61: 0 | U61: =[1]升级!$B58/[2]HeroModelConfig!$M$5 -> 67.2 | V61: =[1]升级!$C58/[2]HeroModelConfig!$N$5 -> 3.36 | W61: =[1]升级!$D58/[2]HeroModelConfig!$O$5 -> 3.36 | X61: 1 | Y61: =[1]升级!$J58/[2]HeroModelConfig!$P$5 -> 0 | Z61: =[1]主表!$E59 -> 400 | AA61: =[1]升级!$H58 -> 600 | AB61: 15 | AC61: -1 | AD61: 580
A62: 58 | B62: 58 | C62: 2 | D62: 6 | E62: 8 | F62: 226;237;245 | G62: 金丹期 | H62: 后 | I62: 8 | J62: 226 | K62: 237 | L62: 245 | M62: 8850 | N62: -1 | O62: -1 | P62: -1 | Q62: -1 | R62: -1 | S62: -1 | T62: 0 | U62: =[1]升级!$B59/[2]HeroModelConfig!$M$5 -> 68.4 | V62: =[1]升级!$C59/[2]HeroModelConfig!$N$5 -> 3.42 | W62: =[1]升级!$D59/[2]HeroModelConfig!$O$5 -> 3.42 | X62: 1 | Y62: =[1]升级!$J59/[2]HeroModelConfig!$P$5 -> 0 | Z62: =[1]主表!$E60 -> 408 | AA62: =[1]升级!$H59 -> 600 | AB62: 15 | AC62: -1 | AD62: 590
A63: 59 | B63: 59 | C63: 2 | D63: 6 | E63: 9 | F63: 226;237;246 | G63: 金丹期 | H63: 后 | I63: 9 | J63: 226 | K63: 237 | L63: 246 | M63: 9000 | N63: -1 | O63: -1 | P63: -1 | Q63: -1 | R63: -1 | S63: -1 | T63: 0 | U63: =[1]升级!$B60/[2]HeroModelConfig!$M$5 -> 69.6 | V63: =[1]升级!$C60/[2]HeroModelConfig!$N$5 -> 3.48 | W63: =[1]升级!$D60/[2]HeroModelConfig!$O$5 -> 3.48 | X63: 1 | Y63: =[1]升级!$J60/[2]HeroModelConfig!$P$5 -> 0 | Z63: =[1]主表!$E61 -> 416 | AA63: =[1]升级!$H60 -> 600 | AB63: 15 | AC63: -1 | AD63: 600
A64: 60 | B64: 60 | C64: 2 | D64: 6 | E64: 10 | F64: 226;237;247 | G64: 金丹期 | H64: 后 | I64: 10 | J64: 226 | K64: 237 | L64: 247 | M64: 9150 | N64: 100001 | O64: 20 | P64: 1301 | Q64: 1 | R64: 1301;1302;1303 | S64: 1;1;1 | T64: 6000;9000 | U64: =[1]升级!$B61/[2]HeroModelConfig!$M$5 -> 78.4 | V64: =[1]升级!$C61/[2]HeroModelConfig!$N$5 -> 3.92 | W64: =[1]升级!$D61/[2]HeroModelConfig!$O$5 -> 3.92 | X64: 1 | Y64: =[1]升级!$J61/[2]HeroModelConfig!$P$5 -> 0 | Z64: =[1]主表!$E62 -> 470 | AA64: =[1]升级!$H61 -> 700 | AB64: 15 | AC64: 50 | AD64: 610
A65: 61 | B65: 61 | C65: 3 | D65: 7 | E65: 1 | F65: 227;235;238 | G65: 元婴期 | H65: 前 | I65: 1 | J65: 227 | K65: 235 | L65: 238 | M65: 9920 | N65: -1 | O65: -1 | P65: -1 | Q65: -1 | R65: =IF(I65=10,"1001;1002;1004",-1) -> -1 | S65: =IF(R65=-1,-1,"100;200;300") -> -1 | T65: =IF(G65=G66,0,CONCATENATE(B65*100,";",B65*150)) -> 0 | U65: =[1]升级!$B62/[2]HeroModelConfig!$M$5 -> 80 | V65: =[1]升级!$C62/[2]HeroModelConfig!$N$5 -> 4 | W65: =[1]升级!$D62/[2]HeroModelConfig!$O$5 -> 4 | X65: 1 | Y65: =[1]升级!$J62/[2]HeroModelConfig!$P$5 -> 0 | Z65: =[1]主表!$E63 -> 481 | AA65: =[1]升级!$H62 -> 700 | AB65: 16 | AC65: -1 | AD65: 620
A66: 62 | B66: 62 | C66: 3 | D66: 7 | E66: 2 | F66: 227;235;239 | G66: 元婴期 | H66: 前 | I66: 2 | J66: 227 | K66: 235 | L66: 239 | M66: 10080 | N66: -1 | O66: -1 | P66: -1 | Q66: -1 | R66: =IF(I66=10,"1001;1002;1004",-1) -> -1 | S66: -1 | T66: =IF(G66=G67,0,CONCATENATE(B66*100,";",B66*150)) -> 0 | U66: =[1]升级!$B63/[2]HeroModelConfig!$M$5 -> 81.2 | V66: =[1]升级!$C63/[2]HeroModelConfig!$N$5 -> 4.06 | W66: =[1]升级!$D63/[2]HeroModelConfig!$O$5 -> 4.06 | X66: 1 | Y66: =[1]升级!$J63/[2]HeroModelConfig!$P$5 -> 0 | Z66: =[1]主表!$E64 -> 490 | AA66: =[1]升级!$H63 -> 700 | AB66: 16 | AC66: -1 | AD66: 630
A67: 63 | B67: 63 | C67: 3 | D67: 7 | E67: 3 | F67: 227;235;240 | G67: 元婴期 | H67: 前 | I67: 3 | J67: 227 | K67: 235 | L67: 240 | M67: 10240 | N67: -1 | O67: -1 | P67: -1 | Q67: -1 | R67: -1 | S67: -1 | T67: 0 | U67: =[1]升级!$B64/[2]HeroModelConfig!$M$5 -> 82.4 | V67: =[1]升级!$C64/[2]HeroModelConfig!$N$5 -> 4.12 | W67: =[1]升级!$D64/[2]HeroModelConfig!$O$5 -> 4.12 | X67: 1 | Y67: =[1]升级!$J64/[2]HeroModelConfig!$P$5 -> 0 | Z67: =[1]主表!$E65 -> 499 | AA67: =[1]升级!$H64 -> 700 | AB67: 16 | AC67: -1 | AD67: 640
A68: 64 | B68: 64 | C68: 3 | D68: 7 | E68: 4 | F68: 227;235;241 | G68: 元婴期 | H68: 前 | I68: 4 | J68: 227 | K68: 235 | L68: 241 | M68: 10400 | N68: -1 | O68: -1 | P68: -1 | Q68: -1 | R68: -1 | S68: -1 | T68: 0 | U68: =[1]升级!$B65/[2]HeroModelConfig!$M$5 -> 84 | V68: =[1]升级!$C65/[2]HeroModelConfig!$N$5 -> 4.2 | W68: =[1]升级!$D65/[2]HeroModelConfig!$O$5 -> 4.2 | X68: 1 | Y68: =[1]升级!$J65/[2]HeroModelConfig!$P$5 -> 0 | Z68: =[1]主表!$E66 -> 510 | AA68: =[1]升级!$H65 -> 700 | AB68: 16 | AC68: -1 | AD68: 650
A69: 65 | B69: 65 | C69: 3 | D69: 7 | E69: 5 | F69: 227;235;242 | G69: 元婴期 | H69: 前 | I69: 5 | J69: 227 | K69: 235 | L69: 242 | M69: 10560 | N69: -1 | O69: -1 | P69: -1 | Q69: -1 | R69: -1 | S69: -1 | T69: 0 | U69: =[1]升级!$B66/[2]HeroModelConfig!$M$5 -> 85.2 | V69: =[1]升级!$C66/[2]HeroModelConfig!$N$5 -> 4.26 | W69: =[1]升级!$D66/[2]HeroModelConfig!$O$5 -> 4.26 | X69: 1 | Y69: =[1]升级!$J66/[2]HeroModelConfig!$P$5 -> 0 | Z69: =[1]主表!$E67 -> 518 | AA69: =[1]升级!$H66 -> 700 | AB69: 16 | AC69: -1 | AD69: 660
A70: 66 | B70: 66 | C70: 3 | D70: 7 | E70: =I70 -> 6 | F70: =_xlfn.TEXTJOIN(";",1,J70:L70) -> 227;235;243 | G70: 元婴期 | H70: 前 | I70: 6 | J70: 227 | K70: 235 | L70: 243 | M70: =INT(0.1*AB70*AD70)*10 -> 10720 | N70: =IF(I70=10,100001,-1) -> -1 | O70: =IF(N70=-1,-1,20) -> -1 | P70: -1 | Q70: -1 | R70: -1 | S70: =IF(R70=-1,-1,"100;200;300") -> -1 | T70: 0 | U70: =[1]升级!$B67/[2]HeroModelConfig!$M$5 -> 86.8 | V70: =[1]升级!$C67/[2]HeroModelConfig!$N$5 -> 4.34 | W70: =[1]升级!$D67/[2]HeroModelConfig!$O$5 -> 4.34 | X70: 1 | Y70: =[1]升级!$J67/[2]HeroModelConfig!$P$5 -> 0 | Z70: =[1]主表!$E68 -> 529 | AA70: =[1]升级!$H67 -> 700 | AB70: 16 | AC70: -1 | AD70: 670
A71: 67 | B71: 67 | C71: 3 | D71: 7 | E71: 7 | F71: 227;235;244 | G71: 元婴期 | H71: 前 | I71: 7 | J71: 227 | K71: 235 | L71: 244 | M71: 10880 | N71: -1 | O71: -1 | P71: -1 | Q71: -1 | R71: -1 | S71: -1 | T71: 0 | U71: =[1]升级!$B68/[2]HeroModelConfig!$M$5 -> 88 | V71: =[1]升级!$C68/[2]HeroModelConfig!$N$5 -> 4.4 | W71: =[1]升级!$D68/[2]HeroModelConfig!$O$5 -> 4.4 | X71: 1 | Y71: =[1]升级!$J68/[2]HeroModelConfig!$P$5 -> 0 | Z71: =[1]主表!$E69 -> 538 | AA71: =[1]升级!$H68 -> 700 | AB71: 16 | AC71: -1 | AD71: =MAX(AD70+10,ROUND(10^(B71*0.01+1.405),0)) -> 680
A72: 68 | B72: 68 | C72: 3 | D72: 7 | E72: 8 | F72: 227;235;245 | G72: 元婴期 | H72: 前 | I72: 8 | J72: 227 | K72: 235 | L72: 245 | M72: 11040 | N72: -1 | O72: -1 | P72: -1 | Q72: -1 | R72: -1 | S72: -1 | T72: 0 | U72: =[1]升级!$B69/[2]HeroModelConfig!$M$5 -> 89.6 | V72: =[1]升级!$C69/[2]HeroModelConfig!$N$5 -> 4.48 | W72: =[1]升级!$D69/[2]HeroModelConfig!$O$5 -> 4.48 | X72: 1 | Y72: =[1]升级!$J69/[2]HeroModelConfig!$P$5 -> 0 | Z72: =[1]主表!$E70 -> 550 | AA72: =[1]升级!$H69 -> 700 | AB72: 16 | AC72: -1 | AD72: 690
A73: 69 | B73: 69 | C73: 3 | D73: 7 | E73: 9 | F73: 227;235;246 | G73: 元婴期 | H73: 前 | I73: 9 | J73: 227 | K73: 235 | L73: 246 | M73: 11200 | N73: -1 | O73: -1 | P73: -1 | Q73: -1 | R73: -1 | S73: -1 | T73: 0 | U73: =[1]升级!$B70/[2]HeroModelConfig!$M$5 -> 91.2 | V73: =[1]升级!$C70/[2]HeroModelConfig!$N$5 -> 4.56 | W73: =[1]升级!$D70/[2]HeroModelConfig!$O$5 -> 4.56 | X73: 1 | Y73: =[1]升级!$J70/[2]HeroModelConfig!$P$5 -> 0 | Z73: =[1]主表!$E71 -> 561 | AA73: =[1]升级!$H70 -> 700 | AB73: 16 | AC73: -1 | AD73: 700
A74: 70 | B74: 70 | C74: 3 | D74: 7 | E74: 10 | F74: 227;235;247 | G74: 元婴期 | H74: 前 | I74: 10 | J74: 227 | K74: 235 | L74: 247 | M74: 11360 | N74: 100001 | O74: 20 | P74: 1301 | Q74: 1 | R74: 1301 | S74: 1 | T74: 0 | U74: =[1]升级!$B71/[2]HeroModelConfig!$M$5 -> 97.2 | V74: =[1]升级!$C71/[2]HeroModelConfig!$N$5 -> 4.86 | W74: =[1]升级!$D71/[2]HeroModelConfig!$O$5 -> 4.86 | X74: 1 | Y74: =[1]升级!$J71/[2]HeroModelConfig!$P$5 -> 0 | Z74: =[1]主表!$E72 -> 599 | AA74: =[1]升级!$H71 -> 700 | AB74: 16 | AC74: 20 | AD74: 710
A75: 71 | B75: 71 | C75: 3 | D75: 8 | E75: 1 | F75: 227;236;238 | G75: 元婴期 | H75: 中 | I75: 1 | J75: 227 | K75: 236 | L75: 238 | M75: 12240 | N75: -1 | O75: -1 | P75: -1 | Q75: -1 | R75: =IF(I75=10,"1001;1002;1004",-1) -> -1 | S75: -1 | T75: 0 | U75: =[1]升级!$B72/[2]HeroModelConfig!$M$5 -> 98.8 | V75: =[1]升级!$C72/[2]HeroModelConfig!$N$5 -> 4.94 | W75: =[1]升级!$D72/[2]HeroModelConfig!$O$5 -> 4.94 | X75: 1 | Y75: =[1]升级!$J72/[2]HeroModelConfig!$P$5 -> 0 | Z75: =[1]主表!$E73 -> 611 | AA75: =[1]升级!$H72 -> 700 | AB75: 17 | AC75: -1 | AD75: 720
A76: 72 | B76: 72 | C76: 3 | D76: 8 | E76: 2 | F76: 227;236;239 | G76: 元婴期 | H76: 中 | I76: 2 | J76: 227 | K76: 236 | L76: 239 | M76: 12410 | N76: -1 | O76: -1 | P76: -1 | Q76: -1 | R76: -1 | S76: -1 | T76: 0 | U76: =[1]升级!$B73/[2]HeroModelConfig!$M$5 -> 100.4 | V76: =[1]升级!$C73/[2]HeroModelConfig!$N$5 -> 5.02 | W76: =[1]升级!$D73/[2]HeroModelConfig!$O$5 -> 5.02 | X76: 1 | Y76: =[1]升级!$J73/[2]HeroModelConfig!$P$5 -> 0 | Z76: =[1]主表!$E74 -> 622 | AA76: =[1]升级!$H73 -> 700 | AB76: 17 | AC76: -1 | AD76: 730
A77: 73 | B77: 73 | C77: 3 | D77: 8 | E77: 3 | F77: 227;236;240 | G77: 元婴期 | H77: 中 | I77: 3 | J77: 227 | K77: 236 | L77: 240 | M77: 12580 | N77: -1 | O77: -1 | P77: -1 | Q77: -1 | R77: -1 | S77: -1 | T77: 0 | U77: =[1]升级!$B74/[2]HeroModelConfig!$M$5 -> 102 | V77: =[1]升级!$C74/[2]HeroModelConfig!$N$5 -> 5.1 | W77: =[1]升级!$D74/[2]HeroModelConfig!$O$5 -> 5.1 | X77: 1 | Y77: =[1]升级!$J74/[2]HeroModelConfig!$P$5 -> 0 | Z77: =[1]主表!$E75 -> 634 | AA77: =[1]升级!$H74 -> 700 | AB77: 17 | AC77: -1 | AD77: 740
A78: 74 | B78: 74 | C78: 3 | D78: 8 | E78: 4 | F78: 227;236;241 | G78: 元婴期 | H78: 中 | I78: 4 | J78: 227 | K78: 236 | L78: 241 | M78: 12750 | N78: -1 | O78: -1 | P78: -1 | Q78: -1 | R78: -1 | S78: -1 | T78: 0 | U78: =[1]升级!$B75/[2]HeroModelConfig!$M$5 -> 103.6 | V78: =[1]升级!$C75/[2]HeroModelConfig!$N$5 -> 5.18 | W78: =[1]升级!$D75/[2]HeroModelConfig!$O$5 -> 5.18 | X78: 1 | Y78: =[1]升级!$J75/[2]HeroModelConfig!$P$5 -> 0 | Z78: =[1]主表!$E76 -> 646 | AA78: =[1]升级!$H75 -> 700 | AB78: 17 | AC78: -1 | AD78: 750
A79: 75 | B79: 75 | C79: 3 | D79: 8 | E79: 5 | F79: 227;236;242 | G79: 元婴期 | H79: 中 | I79: 5 | J79: 227 | K79: 236 | L79: 242 | M79: 12920 | N79: -1 | O79: -1 | P79: -1 | Q79: -1 | R79: -1 | S79: -1 | T79: 0 | U79: =[1]升级!$B76/[2]HeroModelConfig!$M$5 -> 105.2 | V79: =[1]升级!$C76/[2]HeroModelConfig!$N$5 -> 5.26 | W79: =[1]升级!$D76/[2]HeroModelConfig!$O$5 -> 5.26 | X79: 1 | Y79: =[1]升级!$J76/[2]HeroModelConfig!$P$5 -> 0 | Z79: =[1]主表!$E77 -> 658 | AA79: =[1]升级!$H76 -> 700 | AB79: 17 | AC79: -1 | AD79: 760
A80: 76 | B80: 76 | C80: 3 | D80: 8 | E80: 6 | F80: 227;236;243 | G80: 元婴期 | H80: 中 | I80: 6 | J80: 227 | K80: 236 | L80: 243 | M80: 13090 | N80: -1 | O80: -1 | P80: -1 | Q80: -1 | R80: -1 | S80: -1 | T80: 0 | U80: =[1]升级!$B77/[2]HeroModelConfig!$M$5 -> 107.2 | V80: =[1]升级!$C77/[2]HeroModelConfig!$N$5 -> 5.36 | W80: =[1]升级!$D77/[2]HeroModelConfig!$O$5 -> 5.36 | X80: 1 | Y80: =[1]升级!$J77/[2]HeroModelConfig!$P$5 -> 0 | Z80: =[1]主表!$E78 -> 672 | AA80: =[1]升级!$H77 -> 700 | AB80: 17 | AC80: -1 | AD80: 770
A81: 77 | B81: 77 | C81: 3 | D81: 8 | E81: 7 | F81: 227;236;244 | G81: 元婴期 | H81: 中 | I81: 7 | J81: 227 | K81: 236 | L81: 244 | M81: 13260 | N81: -1 | O81: -1 | P81: -1 | Q81: -1 | R81: -1 | S81: -1 | T81: 0 | U81: =[1]升级!$B78/[2]HeroModelConfig!$M$5 -> 108.8 | V81: =[1]升级!$C78/[2]HeroModelConfig!$N$5 -> 5.44 | W81: =[1]升级!$D78/[2]HeroModelConfig!$O$5 -> 5.44 | X81: 1 | Y81: =[1]升级!$J78/[2]HeroModelConfig!$P$5 -> 0 | Z81: =[1]主表!$E79 -> 684 | AA81: =[1]升级!$H78 -> 700 | AB81: 17 | AC81: -1 | AD81: 780
A82: 78 | B82: 78 | C82: 3 | D82: 8 | E82: 8 | F82: 227;236;245 | G82: 元婴期 | H82: 中 | I82: 8 | J82: 227 | K82: 236 | L82: 245 | M82: 13430 | N82: -1 | O82: -1 | P82: -1 | Q82: -1 | R82: -1 | S82: -1 | T82: 0 | U82: =[1]升级!$B79/[2]HeroModelConfig!$M$5 -> 110.4 | V82: =[1]升级!$C79/[2]HeroModelConfig!$N$5 -> 5.52 | W82: =[1]升级!$D79/[2]HeroModelConfig!$O$5 -> 5.52 | X82: 1 | Y82: =[1]升级!$J79/[2]HeroModelConfig!$P$5 -> 0 | Z82: =[1]主表!$E80 -> 696 | AA82: =[1]升级!$H79 -> 700 | AB82: 17 | AC82: -1 | AD82: 790
A83: 79 | B83: 79 | C83: 3 | D83: 8 | E83: 9 | F83: 227;236;246 | G83: 元婴期 | H83: 中 | I83: 9 | J83: 227 | K83: 236 | L83: 246 | M83: 13600 | N83: -1 | O83: -1 | P83: -1 | Q83: -1 | R83: -1 | S83: -1 | T83: 0 | U83: =[1]升级!$B80/[2]HeroModelConfig!$M$5 -> 112.4 | V83: =[1]升级!$C80/[2]HeroModelConfig!$N$5 -> 5.62 | W83: =[1]升级!$D80/[2]HeroModelConfig!$O$5 -> 5.62 | X83: 1 | Y83: =[1]升级!$J80/[2]HeroModelConfig!$P$5 -> 0 | Z83: =[1]主表!$E81 -> 710 | AA83: =[1]升级!$H80 -> 700 | AB83: 17 | AC83: -1 | AD83: 800
A84: 80 | B84: 80 | C84: 3 | D84: 8 | E84: 10 | F84: 227;236;247 | G84: 元婴期 | H84: 中 | I84: 10 | J84: 227 | K84: 236 | L84: 247 | M84: 13770 | N84: 100001 | O84: 20 | P84: 1301 | Q84: 1 | R84: 1301;1302 | S84: 1;1 | T84: 0 | U84: =[1]升级!$B81/[2]HeroModelConfig!$M$5 -> 120 | V84: =[1]升级!$C81/[2]HeroModelConfig!$N$5 -> 6 | W84: =[1]升级!$D81/[2]HeroModelConfig!$O$5 -> 6 | X84: 1 | Y84: =[1]升级!$J81/[2]HeroModelConfig!$P$5 -> 0 | Z84: =[1]主表!$E82 -> 760 | AA84: =[1]升级!$H81 -> 700 | AB84: 17 | AC84: 20 | AD84: 810
A85: 81 | B85: 81 | C85: 3 | D85: 9 | E85: 1 | F85: 227;237;238 | G85: 元婴期 | H85: 后 | I85: 1 | J85: 227 | K85: 237 | L85: 238 | M85: 14760 | N85: -1 | O85: -1 | P85: -1 | Q85: -1 | R85: =IF(I85=10,"1001;1002;1004",-1) -> -1 | S85: -1 | T85: 0 | U85: =[1]升级!$B82/[2]HeroModelConfig!$M$5 -> 121.6 | V85: =[1]升级!$C82/[2]HeroModelConfig!$N$5 -> 6.08 | W85: =[1]升级!$D82/[2]HeroModelConfig!$O$5 -> 6.08 | X85: 1 | Y85: =[1]升级!$J82/[2]HeroModelConfig!$P$5 -> 0 | Z85: =[1]主表!$E83 -> 772 | AA85: =[1]升级!$H82 -> 700 | AB85: 18 | AC85: -1 | AD85: 820
A86: 82 | B86: 82 | C86: 3 | D86: 9 | E86: 2 | F86: 227;237;239 | G86: 元婴期 | H86: 后 | I86: 2 | J86: 227 | K86: 237 | L86: 239 | M86: 14940 | N86: -1 | O86: -1 | P86: -1 | Q86: -1 | R86: -1 | S86: -1 | T86: 0 | U86: =[1]升级!$B83/[2]HeroModelConfig!$M$5 -> 123.6 | V86: =[1]升级!$C83/[2]HeroModelConfig!$N$5 -> 6.18 | W86: =[1]升级!$D83/[2]HeroModelConfig!$O$5 -> 6.18 | X86: 1 | Y86: =[1]升级!$J83/[2]HeroModelConfig!$P$5 -> 0 | Z86: =[1]主表!$E84 -> 787 | AA86: =[1]升级!$H83 -> 700 | AB86: 18 | AC86: -1 | AD86: 830
A87: 83 | B87: 83 | C87: 3 | D87: 9 | E87: 3 | F87: 227;237;240 | G87: 元婴期 | H87: 后 | I87: 3 | J87: 227 | K87: 237 | L87: 240 | M87: 15120 | N87: -1 | O87: -1 | P87: -1 | Q87: -1 | R87: -1 | S87: -1 | T87: 0 | U87: =[1]升级!$B84/[2]HeroModelConfig!$M$5 -> 126 | V87: =[1]升级!$C84/[2]HeroModelConfig!$N$5 -> 6.3 | W87: =[1]升级!$D84/[2]HeroModelConfig!$O$5 -> 6.3 | X87: 1 | Y87: =[1]升级!$J84/[2]HeroModelConfig!$P$5 -> 0 | Z87: =[1]主表!$E85 -> 804 | AA87: =[1]升级!$H84 -> 700 | AB87: 18 | AC87: -1 | AD87: 840
A88: 84 | B88: 84 | C88: 3 | D88: 9 | E88: 4 | F88: 227;237;241 | G88: 元婴期 | H88: 后 | I88: 4 | J88: 227 | K88: 237 | L88: 241 | M88: 15300 | N88: -1 | O88: -1 | P88: -1 | Q88: -1 | R88: -1 | S88: -1 | T88: 0 | U88: =[1]升级!$B85/[2]HeroModelConfig!$M$5 -> 128 | V88: =[1]升级!$C85/[2]HeroModelConfig!$N$5 -> 6.4 | W88: =[1]升级!$D85/[2]HeroModelConfig!$O$5 -> 6.4 | X88: 1 | Y88: =[1]升级!$J85/[2]HeroModelConfig!$P$5 -> 0 | Z88: =[1]主表!$E86 -> 819 | AA88: =[1]升级!$H85 -> 700 | AB88: 18 | AC88: -1 | AD88: 850
A89: 85 | B89: 85 | C89: 3 | D89: 9 | E89: 5 | F89: 227;237;242 | G89: 元婴期 | H89: 后 | I89: 5 | J89: 227 | K89: 237 | L89: 242 | M89: 15480 | N89: -1 | O89: -1 | P89: -1 | Q89: -1 | R89: -1 | S89: -1 | T89: 0 | U89: =[1]升级!$B86/[2]HeroModelConfig!$M$5 -> 130 | V89: =[1]升级!$C86/[2]HeroModelConfig!$N$5 -> 6.5 | W89: =[1]升级!$D86/[2]HeroModelConfig!$O$5 -> 6.5 | X89: 1 | Y89: =[1]升级!$J86/[2]HeroModelConfig!$P$5 -> 0 | Z89: =[1]主表!$E87 -> 834 | AA89: =[1]升级!$H86 -> 700 | AB89: 18 | AC89: -1 | AD89: 860
A90: 86 | B90: 86 | C90: 3 | D90: 9 | E90: 6 | F90: 227;237;243 | G90: 元婴期 | H90: 后 | I90: 6 | J90: 227 | K90: 237 | L90: 243 | M90: 15660 | N90: -1 | O90: -1 | P90: -1 | Q90: -1 | R90: -1 | S90: -1 | T90: 0 | U90: =[1]升级!$B87/[2]HeroModelConfig!$M$5 -> 132 | V90: =[1]升级!$C87/[2]HeroModelConfig!$N$5 -> 6.6 | W90: =[1]升级!$D87/[2]HeroModelConfig!$O$5 -> 6.6 | X90: 1 | Y90: =[1]升级!$J87/[2]HeroModelConfig!$P$5 -> 0 | Z90: =[1]主表!$E88 -> 849 | AA90: =[1]升级!$H87 -> 700 | AB90: 18 | AC90: -1 | AD90: 870
A91: 87 | B91: 87 | C91: 3 | D91: 9 | E91: 7 | F91: 227;237;244 | G91: 元婴期 | H91: 后 | I91: 7 | J91: 227 | K91: 237 | L91: 244 | M91: 15840 | N91: -1 | O91: -1 | P91: -1 | Q91: -1 | R91: -1 | S91: -1 | T91: 0 | U91: =[1]升级!$B88/[2]HeroModelConfig!$M$5 -> 134.4 | V91: =[1]升级!$C88/[2]HeroModelConfig!$N$5 -> 6.72 | W91: =[1]升级!$D88/[2]HeroModelConfig!$O$5 -> 6.72 | X91: 1 | Y91: =[1]升级!$J88/[2]HeroModelConfig!$P$5 -> 0 | Z91: =[1]主表!$E89 -> 867 | AA91: =[1]升级!$H88 -> 700 | AB91: 18 | AC91: -1 | AD91: 880
A92: 88 | B92: 88 | C92: 3 | D92: 9 | E92: 8 | F92: 227;237;245 | G92: 元婴期 | H92: 后 | I92: 8 | J92: 227 | K92: 237 | L92: 245 | M92: 16020 | N92: -1 | O92: -1 | P92: -1 | Q92: -1 | R92: -1 | S92: -1 | T92: 0 | U92: =[1]升级!$B89/[2]HeroModelConfig!$M$5 -> 136.4 | V92: =[1]升级!$C89/[2]HeroModelConfig!$N$5 -> 6.82 | W92: =[1]升级!$D89/[2]HeroModelConfig!$O$5 -> 6.82 | X92: 1 | Y92: =[1]升级!$J89/[2]HeroModelConfig!$P$5 -> 0 | Z92: =[1]主表!$E90 -> 882 | AA92: =[1]升级!$H89 -> 700 | AB92: 18 | AC92: -1 | AD92: 890
A93: 89 | B93: 89 | C93: 3 | D93: 9 | E93: 9 | F93: 227;237;246 | G93: 元婴期 | H93: 后 | I93: 9 | J93: 227 | K93: 237 | L93: 246 | M93: 16200 | N93: -1 | O93: -1 | P93: -1 | Q93: -1 | R93: -1 | S93: -1 | T93: 0 | U93: =[1]升级!$B90/[2]HeroModelConfig!$M$5 -> 138.8 | V93: =[1]升级!$C90/[2]HeroModelConfig!$N$5 -> 6.94 | W93: =[1]升级!$D90/[2]HeroModelConfig!$O$5 -> 6.94 | X93: 1 | Y93: =[1]升级!$J90/[2]HeroModelConfig!$P$5 -> 0 | Z93: =[1]主表!$E91 -> 900 | AA93: =[1]升级!$H90 -> 700 | AB93: 18 | AC93: -1 | AD93: 900
A94: 90 | B94: 90 | C94: 3 | D94: 9 | E94: 10 | F94: 227;237;247 | G94: 元婴期 | H94: 后 | I94: 10 | J94: 227 | K94: 237 | L94: 247 | M94: 16380 | N94: 100001 | O94: 20 | P94: 1301 | Q94: 1 | R94: 1301;1302;1303 | S94: 1;1;1 | T94: 9000;13500 | U94: =[1]升级!$B91/[2]HeroModelConfig!$M$5 -> 157.2 | V94: =[1]升级!$C91/[2]HeroModelConfig!$N$5 -> 7.86 | W94: =[1]升级!$D91/[2]HeroModelConfig!$O$5 -> 7.86 | X94: 1 | Y94: =[1]升级!$J91/[2]HeroModelConfig!$P$5 -> 0 | Z94: =[1]主表!$E92 -> 1022 | AA94: =[1]升级!$H91 -> 800 | AB94: 18 | AC94: 50 | AD94: 910
A95: 91 | B95: 91 | C95: 4 | D95: 10 | E95: 1 | F95: 228;235;238 | G95: 化神期 | H95: 前 | I95: 1 | J95: 228 | K95: 235 | L95: 238 | M95: 17480 | N95: -1 | O95: -1 | P95: -1 | Q95: -1 | R95: =IF(I95=10,"1001;1002;1004",-1) -> -1 | S95: =IF(R95=-1,-1,"100;200;300") -> -1 | T95: =IF(G95=G96,0,CONCATENATE(B95*100,";",B95*150)) -> 0 | U95: =[1]升级!$B92/[2]HeroModelConfig!$M$5 -> 159.6 | V95: =[1]升级!$C92/[2]HeroModelConfig!$N$5 -> 7.98 | W95: =[1]升级!$D92/[2]HeroModelConfig!$O$5 -> 7.98 | X95: 1 | Y95: =[1]升级!$J92/[2]HeroModelConfig!$P$5 -> 0 | Z95: =[1]主表!$E93 -> 1040 | AA95: =[1]升级!$H92 -> 800 | AB95: 19 | AC95: -1 | AD95: 920
A96: 92 | B96: 92 | C96: 4 | D96: 10 | E96: 2 | F96: 228;235;239 | G96: 化神期 | H96: 前 | I96: 2 | J96: 228 | K96: 235 | L96: 239 | M96: 17670 | N96: -1 | O96: -1 | P96: -1 | Q96: -1 | R96: =IF(I96=10,"1001;1002;1004",-1) -> -1 | S96: =IF(R96=-1,-1,"100;200;300") -> -1 | T96: =IF(G96=G97,0,CONCATENATE(B96*100,";",B96*150)) -> 0 | U96: =[1]升级!$B93/[2]HeroModelConfig!$M$5 -> 162.4 | V96: =[1]升级!$C93/[2]HeroModelConfig!$N$5 -> 8.12 | W96: =[1]升级!$D93/[2]HeroModelConfig!$O$5 -> 8.12 | X96: 1 | Y96: =[1]升级!$J93/[2]HeroModelConfig!$P$5 -> 0 | Z96: =[1]主表!$E94 -> 1061 | AA96: =[1]升级!$H93 -> 800 | AB96: 19 | AC96: -1 | AD96: 930
A97: 93 | B97: 93 | C97: 4 | D97: 10 | E97: 3 | F97: 228;235;240 | G97: 化神期 | H97: 前 | I97: 3 | J97: 228 | K97: 235 | L97: 240 | M97: 17860 | N97: -1 | O97: -1 | P97: -1 | Q97: -1 | R97: -1 | S97: -1 | T97: 0 | U97: =[1]升级!$B94/[2]HeroModelConfig!$M$5 -> 164.8 | V97: =[1]升级!$C94/[2]HeroModelConfig!$N$5 -> 8.24 | W97: =[1]升级!$D94/[2]HeroModelConfig!$O$5 -> 8.24 | X97: 1 | Y97: =[1]升级!$J94/[2]HeroModelConfig!$P$5 -> 0 | Z97: =[1]主表!$E95 -> 1079 | AA97: =[1]升级!$H94 -> 800 | AB97: 19 | AC97: -1 | AD97: 940
A98: 94 | B98: 94 | C98: 4 | D98: 10 | E98: 4 | F98: 228;235;241 | G98: 化神期 | H98: 前 | I98: 4 | J98: 228 | K98: 235 | L98: 241 | M98: 18050 | N98: -1 | O98: -1 | P98: -1 | Q98: -1 | R98: -1 | S98: -1 | T98: 0 | U98: =[1]升级!$B95/[2]HeroModelConfig!$M$5 -> 167.6 | V98: =[1]升级!$C95/[2]HeroModelConfig!$N$5 -> 8.38 | W98: =[1]升级!$D95/[2]HeroModelConfig!$O$5 -> 8.38 | X98: 1 | Y98: =[1]升级!$J95/[2]HeroModelConfig!$P$5 -> 0 | Z98: =[1]主表!$E96 -> 1101 | AA98: =[1]升级!$H95 -> 800 | AB98: 19 | AC98: -1 | AD98: 950
A99: 95 | B99: 95 | C99: 4 | D99: 10 | E99: 5 | F99: 228;235;242 | G99: 化神期 | H99: 前 | I99: 5 | J99: 228 | K99: 235 | L99: 242 | M99: 18240 | N99: -1 | O99: -1 | P99: -1 | Q99: -1 | R99: -1 | S99: -1 | T99: 0 | U99: =[1]升级!$B96/[2]HeroModelConfig!$M$5 -> 170.4 | V99: =[1]升级!$C96/[2]HeroModelConfig!$N$5 -> 8.52 | W99: =[1]升级!$D96/[2]HeroModelConfig!$O$5 -> 8.52 | X99: 1 | Y99: =[1]升级!$J96/[2]HeroModelConfig!$P$5 -> 0 | Z99: =[1]主表!$E97 -> 1122 | AA99: =[1]升级!$H96 -> 800 | AB99: 19 | AC99: -1 | AD99: 960
A100: 96 | B100: 96 | C100: 4 | D100: 10 | E100: 6 | F100: 228;235;243 | G100: 化神期 | H100: 前 | I100: 6 | J100: 228 | K100: 235 | L100: 243 | M100: 18430 | N100: -1 | O100: -1 | P100: -1 | Q100: -1 | R100: -1 | S100: -1 | T100: 0 | U100: =[1]升级!$B97/[2]HeroModelConfig!$M$5 -> 173.2 | V100: =[1]升级!$C97/[2]HeroModelConfig!$N$5 -> 8.66 | W100: =[1]升级!$D97/[2]HeroModelConfig!$O$5 -> 8.66 | X100: 1 | Y100: =[1]升级!$J97/[2]HeroModelConfig!$P$5 -> 0 | Z100: =[1]主表!$E98 -> 1143 | AA100: =[1]升级!$H97 -> 800 | AB100: 19 | AC100: -1 | AD100: 970
A101: 97 | B101: 97 | C101: 4 | D101: 10 | E101: 7 | F101: 228;235;244 | G101: 化神期 | H101: 前 | I101: 7 | J101: 228 | K101: 235 | L101: 244 | M101: 18620 | N101: -1 | O101: -1 | P101: -1 | Q101: -1 | R101: -1 | S101: -1 | T101: 0 | U101: =[1]升级!$B98/[2]HeroModelConfig!$M$5 -> 176 | V101: =[1]升级!$C98/[2]HeroModelConfig!$N$5 -> 8.8 | W101: =[1]升级!$D98/[2]HeroModelConfig!$O$5 -> 8.8 | X101: 1 | Y101: =[1]升级!$J98/[2]HeroModelConfig!$P$5 -> 0 | Z101: =[1]主表!$E99 -> 1165 | AA101: =[1]升级!$H98 -> 800 | AB101: 19 | AC101: -1 | AD101: 980
A102: 98 | B102: 98 | C102: 4 | D102: 10 | E102: 8 | F102: 228;235;245 | G102: 化神期 | H102: 前 | I102: 8 | J102: 228 | K102: 235 | L102: 245 | M102: 18810 | N102: -1 | O102: -1 | P102: -1 | Q102: -1 | R102: -1 | S102: -1 | T102: 0 | U102: =[1]升级!$B99/[2]HeroModelConfig!$M$5 -> 178.8 | V102: =[1]升级!$C99/[2]HeroModelConfig!$N$5 -> 8.94 | W102: =[1]升级!$D99/[2]HeroModelConfig!$O$5 -> 8.94 | X102: 1 | Y102: =[1]升级!$J99/[2]HeroModelConfig!$P$5 -> 0 | Z102: =[1]主表!$E100 -> 1186 | AA102: =[1]升级!$H99 -> 800 | AB102: 19 | AC102: -1 | AD102: 990
A103: 99 | B103: 99 | C103: 4 | D103: 10 | E103: 9 | F103: 228;235;246 | G103: 化神期 | H103: 前 | I103: 9 | J103: 228 | K103: 235 | L103: 246 | M103: 19000 | N103: -1 | O103: -1 | P103: -1 | Q103: -1 | R103: -1 | S103: -1 | T103: 0 | U103: =[1]升级!$B100/[2]HeroModelConfig!$M$5 -> 182 | V103: =[1]升级!$C100/[2]HeroModelConfig!$N$5 -> 9.1 | W103: =[1]升级!$D100/[2]HeroModelConfig!$O$5 -> 9.1 | X103: 1 | Y103: =[1]升级!$J100/[2]HeroModelConfig!$P$5 -> 0 | Z103: =[1]主表!$E101 -> 1210 | AA103: =[1]升级!$H100 -> 800 | AB103: 19 | AC103: -1 | AD103: 1000
A104: 100 | B104: 100 | C104: 4 | D104: 10 | E104: 10 | F104: 228;235;247 | G104: 化神期 | H104: 前 | I104: 10 | J104: 228 | K104: 235 | L104: 247 | M104: 19190 | N104: 100001 | O104: 20 | P104: 1301 | Q104: 1 | R104: 1301 | S104: 1 | T104: 0 | U104: =[1]升级!$B101/[2]HeroModelConfig!$M$5 -> 194 | V104: =[1]升级!$C101/[2]HeroModelConfig!$N$5 -> 9.7 | W104: =[1]升级!$D101/[2]HeroModelConfig!$O$5 -> 9.7 | X104: 1 | Y104: =[1]升级!$J101/[2]HeroModelConfig!$P$5 -> 0 | Z104: =[1]主表!$E102 -> 1293 | AA104: =[1]升级!$H101 -> 800 | AB104: 19 | AC104: 20 | AD104: 1010
A105: 101 | B105: 101 | C105: 4 | D105: 11 | E105: 1 | F105: 228;236;238 | G105: 化神期 | H105: 中 | I105: 1 | J105: 228 | K105: 236 | L105: 238 | M105: 20400 | N105: -1 | O105: -1 | P105: -1 | Q105: -1 | R105: =IF(I105=10,"1001;1002;1004",-1) -> -1 | S105: -1 | T105: 0 | U105: =[1]升级!$B102/[2]HeroModelConfig!$M$5 -> 197.2 | V105: =[1]升级!$C102/[2]HeroModelConfig!$N$5 -> 9.86 | W105: =[1]升级!$D102/[2]HeroModelConfig!$O$5 -> 9.86 | X105: 1 | Y105: =[1]升级!$J102/[2]HeroModelConfig!$P$5 -> 0 | Z105: =[1]主表!$E103 -> 1318 | AA105: =[1]升级!$H102 -> 800 | AB105: 20 | AC105: -1 | AD105: 1020
A106: 102 | B106: 102 | C106: 4 | D106: 11 | E106: 2 | F106: 228;236;239 | G106: 化神期 | H106: 中 | I106: 2 | J106: 228 | K106: 236 | L106: 239 | M106: 20600 | N106: -1 | O106: -1 | P106: -1 | Q106: -1 | R106: -1 | S106: -1 | T106: 0 | U106: =[1]升级!$B103/[2]HeroModelConfig!$M$5 -> 200.4 | V106: =[1]升级!$C103/[2]HeroModelConfig!$N$5 -> 10.02 | W106: =[1]升级!$D103/[2]HeroModelConfig!$O$5 -> 10.02 | X106: 1 | Y106: =[1]升级!$J103/[2]HeroModelConfig!$P$5 -> 0 | Z106: =[1]主表!$E104 -> 1343 | AA106: =[1]升级!$H103 -> 800 | AB106: 20 | AC106: -1 | AD106: 1030
A107: 103 | B107: 103 | C107: 4 | D107: 11 | E107: 3 | F107: 228;236;240 | G107: 化神期 | H107: 中 | I107: 3 | J107: 228 | K107: 236 | L107: 240 | M107: 20800 | N107: -1 | O107: -1 | P107: -1 | Q107: -1 | R107: -1 | S107: -1 | T107: 0 | U107: =[1]升级!$B104/[2]HeroModelConfig!$M$5 -> 203.6 | V107: =[1]升级!$C104/[2]HeroModelConfig!$N$5 -> 10.18 | W107: =[1]升级!$D104/[2]HeroModelConfig!$O$5 -> 10.18 | X107: 1 | Y107: =[1]升级!$J104/[2]HeroModelConfig!$P$5 -> 0 | Z107: =[1]主表!$E105 -> 1368 | AA107: =[1]升级!$H104 -> 800 | AB107: 20 | AC107: -1 | AD107: 1040
A108: 104 | B108: 104 | C108: 4 | D108: 11 | E108: 4 | F108: 228;236;241 | G108: 化神期 | H108: 中 | I108: 4 | J108: 228 | K108: 236 | L108: 241 | M108: 21000 | N108: -1 | O108: -1 | P108: -1 | Q108: -1 | R108: -1 | S108: -1 | T108: 0 | U108: =[1]升级!$B105/[2]HeroModelConfig!$M$5 -> 207.2 | V108: =[1]升级!$C105/[2]HeroModelConfig!$N$5 -> 10.36 | W108: =[1]升级!$D105/[2]HeroModelConfig!$O$5 -> 10.36 | X108: 1 | Y108: =[1]升级!$J105/[2]HeroModelConfig!$P$5 -> 0 | Z108: =[1]主表!$E106 -> 1395 | AA108: =[1]升级!$H105 -> 800 | AB108: 20 | AC108: -1 | AD108: 1050
A109: 105 | B109: 105 | C109: 4 | D109: 11 | E109: 5 | F109: 228;236;242 | G109: 化神期 | H109: 中 | I109: 5 | J109: 228 | K109: 236 | L109: 242 | M109: 21200 | N109: -1 | O109: -1 | P109: -1 | Q109: -1 | R109: -1 | S109: -1 | T109: 0 | U109: =[1]升级!$B106/[2]HeroModelConfig!$M$5 -> 210.4 | V109: =[1]升级!$C106/[2]HeroModelConfig!$N$5 -> 10.52 | W109: =[1]升级!$D106/[2]HeroModelConfig!$O$5 -> 10.52 | X109: 1 | Y109: =[1]升级!$J106/[2]HeroModelConfig!$P$5 -> 0 | Z109: =[1]主表!$E107 -> 1420 | AA109: =[1]升级!$H106 -> 800 | AB109: 20 | AC109: -1 | AD109: 1060
A110: 106 | B110: 106 | C110: 4 | D110: 11 | E110: 6 | F110: 228;236;243 | G110: 化神期 | H110: 中 | I110: 6 | J110: 228 | K110: 236 | L110: 243 | M110: 21400 | N110: -1 | O110: -1 | P110: -1 | Q110: -1 | R110: -1 | S110: -1 | T110: 0 | U110: =[1]升级!$B107/[2]HeroModelConfig!$M$5 -> 214 | V110: =[1]升级!$C107/[2]HeroModelConfig!$N$5 -> 10.7 | W110: =[1]升级!$D107/[2]HeroModelConfig!$O$5 -> 10.7 | X110: 1 | Y110: =[1]升级!$J107/[2]HeroModelConfig!$P$5 -> 0 | Z110: =[1]主表!$E108 -> 1448 | AA110: =[1]升级!$H107 -> 800 | AB110: 20 | AC110: -1 | AD110: 1070
A111: 107 | B111: 107 | C111: 4 | D111: 11 | E111: 7 | F111: 228;236;244 | G111: 化神期 | H111: 中 | I111: 7 | J111: 228 | K111: 236 | L111: 244 | M111: 21600 | N111: -1 | O111: -1 | P111: -1 | Q111: -1 | R111: -1 | S111: -1 | T111: 0 | U111: =[1]升级!$B108/[2]HeroModelConfig!$M$5 -> 217.6 | V111: =[1]升级!$C108/[2]HeroModelConfig!$N$5 -> 10.88 | W111: =[1]升级!$D108/[2]HeroModelConfig!$O$5 -> 10.88 | X111: 1 | Y111: =[1]升级!$J108/[2]HeroModelConfig!$P$5 -> 0 | Z111: =[1]主表!$E109 -> 1476 | AA111: =[1]升级!$H108 -> 800 | AB111: 20 | AC111: -1 | AD111: 1080
A112: 108 | B112: 108 | C112: 4 | D112: 11 | E112: 8 | F112: 228;236;245 | G112: 化神期 | H112: 中 | I112: 8 | J112: 228 | K112: 236 | L112: 245 | M112: 21800 | N112: -1 | O112: -1 | P112: -1 | Q112: -1 | R112: -1 | S112: -1 | T112: 0 | U112: =[1]升级!$B109/[2]HeroModelConfig!$M$5 -> 220.8 | V112: =[1]升级!$C109/[2]HeroModelConfig!$N$5 -> 11.04 | W112: =[1]升级!$D109/[2]HeroModelConfig!$O$5 -> 11.04 | X112: 1 | Y112: =[1]升级!$J109/[2]HeroModelConfig!$P$5 -> 0 | Z112: =[1]主表!$E110 -> 1501 | AA112: =[1]升级!$H109 -> 800 | AB112: 20 | AC112: -1 | AD112: 1090
A113: 109 | B113: 109 | C113: 4 | D113: 11 | E113: 9 | F113: 228;236;246 | G113: 化神期 | H113: 中 | I113: 9 | J113: 228 | K113: 236 | L113: 246 | M113: 22000 | N113: -1 | O113: -1 | P113: -1 | Q113: -1 | R113: -1 | S113: -1 | T113: 0 | U113: =[1]升级!$B110/[2]HeroModelConfig!$M$5 -> 224.8 | V113: =[1]升级!$C110/[2]HeroModelConfig!$N$5 -> 11.24 | W113: =[1]升级!$D110/[2]HeroModelConfig!$O$5 -> 11.24 | X113: 1 | Y113: =[1]升级!$J110/[2]HeroModelConfig!$P$5 -> 0 | Z113: =[1]主表!$E111 -> 1532 | AA113: =[1]升级!$H110 -> 800 | AB113: 20 | AC113: -1 | AD113: 1100
A114: 110 | B114: 110 | C114: 4 | D114: 11 | E114: 10 | F114: 228;236;247 | G114: 化神期 | H114: 中 | I114: 10 | J114: 228 | K114: 236 | L114: 247 | M114: 22200 | N114: 100001 | O114: 20 | P114: 1301 | Q114: 1 | R114: 1301;1302 | S114: 1;1 | T114: 0 | U114: =[1]升级!$B111/[2]HeroModelConfig!$M$5 -> 239.6 | V114: =[1]升级!$C111/[2]HeroModelConfig!$N$5 -> 11.98 | W114: =[1]升级!$D111/[2]HeroModelConfig!$O$5 -> 11.98 | X114: 1 | Y114: =[1]升级!$J111/[2]HeroModelConfig!$P$5 -> 0 | Z114: =[1]主表!$E112 -> 1637 | AA114: =[1]升级!$H111 -> 800 | AB114: 20 | AC114: 20 | AD114: 1110
A115: 111 | B115: 111 | C115: 4 | D115: 12 | E115: 1 | F115: 228;237;238 | G115: 化神期 | H115: 后 | I115: 1 | J115: 228 | K115: 237 | L115: 238 | M115: 23520 | N115: -1 | O115: -1 | P115: -1 | Q115: -1 | R115: =IF(I115=10,"1001;1002;1004",-1) -> -1 | S115: -1 | T115: 0 | U115: =[1]升级!$B112/[2]HeroModelConfig!$M$5 -> 243.2 | V115: =[1]升级!$C112/[2]HeroModelConfig!$N$5 -> 12.16 | W115: =[1]升级!$D112/[2]HeroModelConfig!$O$5 -> 12.16 | X115: 1 | Y115: =[1]升级!$J112/[2]HeroModelConfig!$P$5 -> 0 | Z115: =[1]主表!$E113 -> 1666 | AA115: =[1]升级!$H112 -> 800 | AB115: 21 | AC115: -1 | AD115: 1120
A116: 112 | B116: 112 | C116: 4 | D116: 12 | E116: 2 | F116: 228;237;239 | G116: 化神期 | H116: 后 | I116: 2 | J116: 228 | K116: 237 | L116: 239 | M116: 23730 | N116: -1 | O116: -1 | P116: -1 | Q116: -1 | R116: -1 | S116: -1 | T116: 0 | U116: =[1]升级!$B113/[2]HeroModelConfig!$M$5 -> 247.2 | V116: =[1]升级!$C113/[2]HeroModelConfig!$N$5 -> 12.36 | W116: =[1]升级!$D113/[2]HeroModelConfig!$O$5 -> 12.36 | X116: 1 | Y116: =[1]升级!$J113/[2]HeroModelConfig!$P$5 -> 0 | Z116: =[1]主表!$E114 -> 1697 | AA116: =[1]升级!$H113 -> 800 | AB116: 21 | AC116: -1 | AD116: 1130
A117: 113 | B117: 113 | C117: 4 | D117: 12 | E117: 3 | F117: 228;237;240 | G117: 化神期 | H117: 后 | I117: 3 | J117: 228 | K117: 237 | L117: 240 | M117: 23940 | N117: -1 | O117: -1 | P117: -1 | Q117: -1 | R117: -1 | S117: -1 | T117: 0 | U117: =[1]升级!$B114/[2]HeroModelConfig!$M$5 -> 251.6 | V117: =[1]升级!$C114/[2]HeroModelConfig!$N$5 -> 12.58 | W117: =[1]升级!$D114/[2]HeroModelConfig!$O$5 -> 12.58 | X117: 1 | Y117: =[1]升级!$J114/[2]HeroModelConfig!$P$5 -> 0 | Z117: =[1]主表!$E115 -> 1732 | AA117: =[1]升级!$H114 -> 800 | AB117: 21 | AC117: -1 | AD117: 1140
A118: 114 | B118: 114 | C118: 4 | D118: 12 | E118: 4 | F118: 228;237;241 | G118: 化神期 | H118: 后 | I118: 4 | J118: 228 | K118: 237 | L118: 241 | M118: 24150 | N118: -1 | O118: -1 | P118: -1 | Q118: -1 | R118: -1 | S118: -1 | T118: 0 | U118: =[1]升级!$B115/[2]HeroModelConfig!$M$5 -> 255.6 | V118: =[1]升级!$C115/[2]HeroModelConfig!$N$5 -> 12.78 | W118: =[1]升级!$D115/[2]HeroModelConfig!$O$5 -> 12.78 | X118: 1 | Y118: =[1]升级!$J115/[2]HeroModelConfig!$P$5 -> 0 | Z118: =[1]主表!$E116 -> 1764 | AA118: =[1]升级!$H115 -> 800 | AB118: 21 | AC118: -1 | AD118: 1150
A119: 115 | B119: 115 | C119: 4 | D119: 12 | E119: 5 | F119: 228;237;242 | G119: 化神期 | H119: 后 | I119: 5 | J119: 228 | K119: 237 | L119: 242 | M119: 24360 | N119: -1 | O119: -1 | P119: -1 | Q119: -1 | R119: -1 | S119: -1 | T119: 0 | U119: =[1]升级!$B116/[2]HeroModelConfig!$M$5 -> 260 | V119: =[1]升级!$C116/[2]HeroModelConfig!$N$5 -> 13 | W119: =[1]升级!$D116/[2]HeroModelConfig!$O$5 -> 13 | X119: 1 | Y119: =[1]升级!$J116/[2]HeroModelConfig!$P$5 -> 0 | Z119: =[1]主表!$E117 -> 1798 | AA119: =[1]升级!$H116 -> 800 | AB119: 21 | AC119: -1 | AD119: 1160
A120: 116 | B120: 116 | C120: 4 | D120: 12 | E120: 6 | F120: 228;237;243 | G120: 化神期 | H120: 后 | I120: 6 | J120: 228 | K120: 237 | L120: 243 | M120: 24570 | N120: -1 | O120: -1 | P120: -1 | Q120: -1 | R120: -1 | S120: -1 | T120: 0 | U120: =[1]升级!$B117/[2]HeroModelConfig!$M$5 -> 264 | V120: =[1]升级!$C117/[2]HeroModelConfig!$N$5 -> 13.2 | W120: =[1]升级!$D117/[2]HeroModelConfig!$O$5 -> 13.2 | X120: 1 | Y120: =[1]升级!$J117/[2]HeroModelConfig!$P$5 -> 0 | Z120: =[1]主表!$E118 -> 1830 | AA120: =[1]升级!$H117 -> 800 | AB120: 21 | AC120: -1 | AD120: 1170
A121: 117 | B121: 117 | C121: 4 | D121: 12 | E121: 7 | F121: 228;237;244 | G121: 化神期 | H121: 后 | I121: 7 | J121: 228 | K121: 237 | L121: 244 | M121: 24780 | N121: -1 | O121: -1 | P121: -1 | Q121: -1 | R121: -1 | S121: -1 | T121: 0 | U121: =[1]升级!$B118/[2]HeroModelConfig!$M$5 -> 268.4 | V121: =[1]升级!$C118/[2]HeroModelConfig!$N$5 -> 13.42 | W121: =[1]升级!$D118/[2]HeroModelConfig!$O$5 -> 13.42 | X121: 1 | Y121: =[1]升级!$J118/[2]HeroModelConfig!$P$5 -> 0 | Z121: =[1]主表!$E119 -> 1865 | AA121: =[1]升级!$H118 -> 800 | AB121: 21 | AC121: -1 | AD121: 1180
A122: 118 | B122: 118 | C122: 4 | D122: 12 | E122: 8 | F122: 228;237;245 | G122: 化神期 | H122: 后 | I122: 8 | J122: 228 | K122: 237 | L122: 245 | M122: 24990 | N122: -1 | O122: -1 | P122: -1 | Q122: -1 | R122: -1 | S122: -1 | T122: 0 | U122: =[1]升级!$B119/[2]HeroModelConfig!$M$5 -> 272.8 | V122: =[1]升级!$C119/[2]HeroModelConfig!$N$5 -> 13.64 | W122: =[1]升级!$D119/[2]HeroModelConfig!$O$5 -> 13.64 | X122: 1 | Y122: =[1]升级!$J119/[2]HeroModelConfig!$P$5 -> 0 | Z122: =[1]主表!$E120 -> 1901 | AA122: =[1]升级!$H119 -> 800 | AB122: 21 | AC122: -1 | AD122: 1190
A123: 119 | B123: 119 | C123: 4 | D123: 12 | E123: 9 | F123: 228;237;246 | G123: 化神期 | H123: 后 | I123: 9 | J123: 228 | K123: 237 | L123: 246 | M123: 25200 | N123: -1 | O123: -1 | P123: -1 | Q123: -1 | R123: -1 | S123: -1 | T123: 0 | U123: =[1]升级!$B120/[2]HeroModelConfig!$M$5 -> 277.2 | V123: =[1]升级!$C120/[2]HeroModelConfig!$N$5 -> 13.86 | W123: =[1]升级!$D120/[2]HeroModelConfig!$O$5 -> 13.86 | X123: 1 | Y123: =[1]升级!$J120/[2]HeroModelConfig!$P$5 -> 0 | Z123: =[1]主表!$E121 -> 1936 | AA123: =[1]升级!$H120 -> 800 | AB123: 21 | AC123: -1 | AD123: 1200
A124: 120 | B124: 120 | C124: 4 | D124: 12 | E124: 10 | F124: 228;237;247 | G124: 化神期 | H124: 后 | I124: 10 | J124: 228 | K124: 237 | L124: 247 | M124: 25410 | N124: 100001 | O124: 20 | P124: 1301 | Q124: 1 | R124: 1301;1302;1303 | S124: 1;1;1 | T124: 12000;18000 | U124: =[1]升级!$B121/[2]HeroModelConfig!$M$5 -> 314 | V124: =[1]升级!$C121/[2]HeroModelConfig!$N$5 -> 15.7 | W124: =[1]升级!$D121/[2]HeroModelConfig!$O$5 -> 15.7 | X124: 1 | Y124: =[1]升级!$J121/[2]HeroModelConfig!$P$5 -> 0 | Z124: =[1]主表!$E122 -> 2198 | AA124: =[1]升级!$H121 -> 900 | AB124: 21 | AC124: 50 | AD124: 1210
A125: 121 | B125: 121 | C125: 5 | D125: 13 | E125: 1 | F125: 229;235;238 | G125: 炼虚期 | H125: 前 | I125: 1 | J125: 229 | K125: 235 | L125: 238 | M125: 26840 | N125: -1 | O125: -1 | P125: -1 | Q125: -1 | R125: =IF(I125=10,"1001;1002;1004",-1) -> -1 | S125: =IF(R125=-1,-1,"100;200;300") -> -1 | T125: =IF(G125=G126,0,CONCATENATE(B125*100,";",B125*150)) -> 0 | U125: =[1]升级!$B122/[2]HeroModelConfig!$M$5 -> 319.2 | V125: =[1]升级!$C122/[2]HeroModelConfig!$N$5 -> 15.96 | W125: =[1]升级!$D122/[2]HeroModelConfig!$O$5 -> 15.96 | X125: 1 | Y125: =[1]升级!$J122/[2]HeroModelConfig!$P$5 -> 0 | Z125: =[1]主表!$E123 -> 2240 | AA125: =[1]升级!$H122 -> 900 | AB125: 22 | AC125: -1 | AD125: 1220
A126: 122 | B126: 122 | C126: 5 | D126: 13 | E126: 2 | F126: 229;235;239 | G126: 炼虚期 | H126: 前 | I126: 2 | J126: 229 | K126: 235 | L126: 239 | M126: 27060 | N126: -1 | O126: -1 | P126: -1 | Q126: -1 | R126: =IF(I126=10,"1001;1002;1004",-1) -> -1 | S126: =IF(R126=-1,-1,"100;200;300") -> -1 | T126: =IF(G126=G127,0,CONCATENATE(B126*100,";",B126*150)) -> 0 | U126: =[1]升级!$B123/[2]HeroModelConfig!$M$5 -> 324.4 | V126: =[1]升级!$C123/[2]HeroModelConfig!$N$5 -> 16.22 | W126: =[1]升级!$D123/[2]HeroModelConfig!$O$5 -> 16.22 | X126: 1 | Y126: =[1]升级!$J123/[2]HeroModelConfig!$P$5 -> 0 | Z126: =[1]主表!$E124 -> 2282 | AA126: =[1]升级!$H123 -> 900 | AB126: 22 | AC126: -1 | AD126: 1230
A127: 123 | B127: 123 | C127: 5 | D127: 13 | E127: 3 | F127: 229;235;240 | G127: 炼虚期 | H127: 前 | I127: 3 | J127: 229 | K127: 235 | L127: 240 | M127: 27280 | N127: -1 | O127: -1 | P127: -1 | Q127: -1 | R127: -1 | S127: -1 | T127: 0 | U127: =[1]升级!$B124/[2]HeroModelConfig!$M$5 -> 329.6 | V127: =[1]升级!$C124/[2]HeroModelConfig!$N$5 -> 16.48 | W127: =[1]升级!$D124/[2]HeroModelConfig!$O$5 -> 16.48 | X127: 1 | Y127: =[1]升级!$J124/[2]HeroModelConfig!$P$5 -> 0 | Z127: =[1]主表!$E125 -> 2324 | AA127: =[1]升级!$H124 -> 900 | AB127: 22 | AC127: -1 | AD127: 1240
A128: 124 | B128: 124 | C128: 5 | D128: 13 | E128: 4 | F128: 229;235;241 | G128: 炼虚期 | H128: 前 | I128: 4 | J128: 229 | K128: 235 | L128: 241 | M128: 27500 | N128: -1 | O128: -1 | P128: -1 | Q128: -1 | R128: -1 | S128: -1 | T128: 0 | U128: =[1]升级!$B125/[2]HeroModelConfig!$M$5 -> 335.2 | V128: =[1]升级!$C125/[2]HeroModelConfig!$N$5 -> 16.76 | W128: =[1]升级!$D125/[2]HeroModelConfig!$O$5 -> 16.76 | X128: 1 | Y128: =[1]升级!$J125/[2]HeroModelConfig!$P$5 -> 0 | Z128: =[1]主表!$E126 -> 2369 | AA128: =[1]升级!$H125 -> 900 | AB128: 22 | AC128: -1 | AD128: 1250
A129: 125 | B129: 125 | C129: 5 | D129: 13 | E129: 5 | F129: 229;235;242 | G129: 炼虚期 | H129: 前 | I129: 5 | J129: 229 | K129: 235 | L129: 242 | M129: 27720 | N129: -1 | O129: -1 | P129: -1 | Q129: -1 | R129: -1 | S129: -1 | T129: 0 | U129: =[1]升级!$B126/[2]HeroModelConfig!$M$5 -> 340.4 | V129: =[1]升级!$C126/[2]HeroModelConfig!$N$5 -> 17.02 | W129: =[1]升级!$D126/[2]HeroModelConfig!$O$5 -> 17.02 | X129: 1 | Y129: =[1]升级!$J126/[2]HeroModelConfig!$P$5 -> 0 | Z129: =[1]主表!$E127 -> 2411 | AA129: =[1]升级!$H126 -> 900 | AB129: 22 | AC129: -1 | AD129: 1260
A130: 126 | B130: 126 | C130: 5 | D130: 13 | E130: 6 | F130: 229;235;243 | G130: 炼虚期 | H130: 前 | I130: 6 | J130: 229 | K130: 235 | L130: 243 | M130: 27940 | N130: -1 | O130: -1 | P130: -1 | Q130: -1 | R130: -1 | S130: -1 | T130: 0 | U130: =[1]升级!$B127/[2]HeroModelConfig!$M$5 -> 346.4 | V130: =[1]升级!$C127/[2]HeroModelConfig!$N$5 -> 17.32 | W130: =[1]升级!$D127/[2]HeroModelConfig!$O$5 -> 17.32 | X130: 1 | Y130: =[1]升级!$J127/[2]HeroModelConfig!$P$5 -> 0 | Z130: =[1]主表!$E128 -> 2459 | AA130: =[1]升级!$H127 -> 900 | AB130: 22 | AC130: -1 | AD130: 1270
A131: 127 | B131: 127 | C131: 5 | D131: 13 | E131: 7 | F131: 229;235;244 | G131: 炼虚期 | H131: 前 | I131: 7 | J131: 229 | K131: 235 | L131: 244 | M131: 28160 | N131: -1 | O131: -1 | P131: -1 | Q131: -1 | R131: -1 | S131: -1 | T131: 0 | U131: =[1]升级!$B128/[2]HeroModelConfig!$M$5 -> 352 | V131: =[1]升级!$C128/[2]HeroModelConfig!$N$5 -> 17.6 | W131: =[1]升级!$D128/[2]HeroModelConfig!$O$5 -> 17.6 | X131: 1 | Y131: =[1]升级!$J128/[2]HeroModelConfig!$P$5 -> 0 | Z131: =[1]主表!$E129 -> 2505 | AA131: =[1]升级!$H128 -> 900 | AB131: 22 | AC131: -1 | AD131: 1280
A132: 128 | B132: 128 | C132: 5 | D132: 13 | E132: 8 | F132: 229;235;245 | G132: 炼虚期 | H132: 前 | I132: 8 | J132: 229 | K132: 235 | L132: 245 | M132: 28380 | N132: -1 | O132: -1 | P132: -1 | Q132: -1 | R132: -1 | S132: -1 | T132: 0 | U132: =[1]升级!$B129/[2]HeroModelConfig!$M$5 -> 357.6 | V132: =[1]升级!$C129/[2]HeroModelConfig!$N$5 -> 17.88 | W132: =[1]升级!$D129/[2]HeroModelConfig!$O$5 -> 17.88 | X132: 1 | Y132: =[1]升级!$J129/[2]HeroModelConfig!$P$5 -> 0 | Z132: =[1]主表!$E130 -> 2551 | AA132: =[1]升级!$H129 -> 900 | AB132: 22 | AC132: -1 | AD132: 1290
A133: 129 | B133: 129 | C133: 5 | D133: 13 | E133: 9 | F133: 229;235;246 | G133: 炼虚期 | H133: 前 | I133: 9 | J133: 229 | K133: 235 | L133: 246 | M133: 28600 | N133: -1 | O133: -1 | P133: -1 | Q133: -1 | R133: -1 | S133: -1 | T133: 0 | U133: =[1]升级!$B130/[2]HeroModelConfig!$M$5 -> 363.6 | V133: =[1]升级!$C130/[2]HeroModelConfig!$N$5 -> 18.18 | W133: =[1]升级!$D130/[2]HeroModelConfig!$O$5 -> 18.18 | X133: 1 | Y133: =[1]升级!$J130/[2]HeroModelConfig!$P$5 -> 0 | Z133: =[1]主表!$E131 -> 2600 | AA133: =[1]升级!$H130 -> 900 | AB133: 22 | AC133: -1 | AD133: 1300
A134: 130 | B134: 130 | C134: 5 | D134: 13 | E134: =I134 -> 10 | F134: =_xlfn.TEXTJOIN(";",1,J134:L134) -> 229;235;247 | G134: 炼虚期 | H134: 前 | I134: 10 | J134: 229 | K134: 235 | L134: 247 | M134: =INT(0.1*AB134*AD134)*10 -> 28820 | N134: =IF(I134=10,100001,-1) -> 100001 | O134: =IF(N134=-1,-1,20) -> 20 | P134: 1301 | Q134: 1 | R134: 1301 | S134: 1 | T134: 0 | U134: =[1]升级!$B131/[2]HeroModelConfig!$M$5 -> 387.6 | V134: =[1]升级!$C131/[2]HeroModelConfig!$N$5 -> 19.38 | W134: =[1]升级!$D131/[2]HeroModelConfig!$O$5 -> 19.38 | X134: 1 | Y134: =[1]升级!$J131/[2]HeroModelConfig!$P$5 -> 0 | Z134: =[1]主表!$E132 -> 2778 | AA134: =[1]升级!$H131 -> 900 | AB134: 22 | AC134: 20 | AD134: 1310
A135: 131 | B135: 131 | C135: 5 | D135: 14 | E135: 1 | F135: 229;236;238 | G135: 炼虚期 | H135: 中 | I135: 1 | J135: 229 | K135: 236 | L135: 238 | M135: 30360 | N135: -1 | O135: -1 | P135: -1 | Q135: -1 | R135: =IF(I135=10,"1001;1002;1004",-1) -> -1 | S135: -1 | T135: 0 | U135: =[1]升级!$B132/[2]HeroModelConfig!$M$5 -> 394 | V135: =[1]升级!$C132/[2]HeroModelConfig!$N$5 -> 19.7 | W135: =[1]升级!$D132/[2]HeroModelConfig!$O$5 -> 19.7 | X135: 1 | Y135: =[1]升级!$J132/[2]HeroModelConfig!$P$5 -> 0 | Z135: =[1]主表!$E133 -> 2830 | AA135: =[1]升级!$H132 -> 900 | AB135: 23 | AC135: -1 | AD135: =MAX(AD134+10,ROUND(10^(B135*0.01+1.405),0)) -> 1320
A136: 132 | B136: 132 | C136: 5 | D136: 14 | E136: 2 | F136: 229;236;239 | G136: 炼虚期 | H136: 中 | I136: 2 | J136: 229 | K136: 236 | L136: 239 | M136: 30590 | N136: -1 | O136: -1 | P136: -1 | Q136: -1 | R136: -1 | S136: -1 | T136: 0 | U136: =[1]升级!$B133/[2]HeroModelConfig!$M$5 -> 400.4 | V136: =[1]升级!$C133/[2]HeroModelConfig!$N$5 -> 20.02 | W136: =[1]升级!$D133/[2]HeroModelConfig!$O$5 -> 20.02 | X136: 1 | Y136: =[1]升级!$J133/[2]HeroModelConfig!$P$5 -> 0 | Z136: =[1]主表!$E134 -> 2883 | AA136: =[1]升级!$H133 -> 900 | AB136: 23 | AC136: -1 | AD136: 1330
A137: 133 | B137: 133 | C137: 5 | D137: 14 | E137: 3 | F137: 229;236;240 | G137: 炼虚期 | H137: 中 | I137: 3 | J137: 229 | K137: 236 | L137: 240 | M137: 30820 | N137: -1 | O137: -1 | P137: -1 | Q137: -1 | R137: -1 | S137: -1 | T137: 0 | U137: =[1]升级!$B134/[2]HeroModelConfig!$M$5 -> 407.2 | V137: =[1]升级!$C134/[2]HeroModelConfig!$N$5 -> 20.36 | W137: =[1]升级!$D134/[2]HeroModelConfig!$O$5 -> 20.36 | X137: 1 | Y137: =[1]升级!$J134/[2]HeroModelConfig!$P$5 -> 0 | Z137: =[1]主表!$E135 -> 2939 | AA137: =[1]升级!$H134 -> 900 | AB137: 23 | AC137: -1 | AD137: 1340
A138: 134 | B138: 134 | C138: 5 | D138: 14 | E138: 4 | F138: 229;236;241 | G138: 炼虚期 | H138: 中 | I138: 4 | J138: 229 | K138: 236 | L138: 241 | M138: 31050 | N138: -1 | O138: -1 | P138: -1 | Q138: -1 | R138: -1 | S138: -1 | T138: 0 | U138: =[1]升级!$B135/[2]HeroModelConfig!$M$5 -> 413.6 | V138: =[1]升级!$C135/[2]HeroModelConfig!$N$5 -> 20.68 | W138: =[1]升级!$D135/[2]HeroModelConfig!$O$5 -> 20.68 | X138: 1 | Y138: =[1]升级!$J135/[2]HeroModelConfig!$P$5 -> 0 | Z138: =[1]主表!$E136 -> 2992 | AA138: =[1]升级!$H135 -> 900 | AB138: 23 | AC138: -1 | AD138: 1350
A139: 135 | B139: 135 | C139: 5 | D139: 14 | E139: 5 | F139: 229;236;242 | G139: 炼虚期 | H139: 中 | I139: 5 | J139: 229 | K139: 236 | L139: 242 | M139: 31280 | N139: -1 | O139: -1 | P139: -1 | Q139: -1 | R139: -1 | S139: -1 | T139: 0 | U139: =[1]升级!$B136/[2]HeroModelConfig!$M$5 -> 420.4 | V139: =[1]升级!$C136/[2]HeroModelConfig!$N$5 -> 21.02 | W139: =[1]升级!$D136/[2]HeroModelConfig!$O$5 -> 21.02 | X139: 1 | Y139: =[1]升级!$J136/[2]HeroModelConfig!$P$5 -> 0 | Z139: =[1]主表!$E137 -> 3048 | AA139: =[1]升级!$H136 -> 900 | AB139: 23 | AC139: -1 | AD139: 1360
A140: 136 | B140: 136 | C140: 5 | D140: 14 | E140: 6 | F140: 229;236;243 | G140: 炼虚期 | H140: 中 | I140: 6 | J140: 229 | K140: 236 | L140: 243 | M140: 31510 | N140: -1 | O140: -1 | P140: -1 | Q140: -1 | R140: -1 | S140: -1 | T140: 0 | U140: =[1]升级!$B137/[2]HeroModelConfig!$M$5 -> 427.6 | V140: =[1]升级!$C137/[2]HeroModelConfig!$N$5 -> 21.38 | W140: =[1]升级!$D137/[2]HeroModelConfig!$O$5 -> 21.38 | X140: 1 | Y140: =[1]升级!$J137/[2]HeroModelConfig!$P$5 -> 0 | Z140: =[1]主表!$E138 -> 3107 | AA140: =[1]升级!$H137 -> 900 | AB140: 23 | AC140: -1 | AD140: 1370
A141: 137 | B141: 137 | C141: 5 | D141: 14 | E141: 7 | F141: 229;236;244 | G141: 炼虚期 | H141: 中 | I141: 7 | J141: 229 | K141: 236 | L141: 244 | M141: 31740 | N141: -1 | O141: -1 | P141: -1 | Q141: -1 | R141: -1 | S141: -1 | T141: 0 | U141: =[1]升级!$B138/[2]HeroModelConfig!$M$5 -> 434.4 | V141: =[1]升级!$C138/[2]HeroModelConfig!$N$5 -> 21.72 | W141: =[1]升级!$D138/[2]HeroModelConfig!$O$5 -> 21.72 | X141: 1 | Y141: =[1]升级!$J138/[2]HeroModelConfig!$P$5 -> 0 | Z141: =[1]主表!$E139 -> 3164 | AA141: =[1]升级!$H138 -> 900 | AB141: 23 | AC141: -1 | AD141: 1380
A142: 138 | B142: 138 | C142: 5 | D142: 14 | E142: 8 | F142: 229;236;245 | G142: 炼虚期 | H142: 中 | I142: 8 | J142: 229 | K142: 236 | L142: 245 | M142: 31970 | N142: -1 | O142: -1 | P142: -1 | Q142: -1 | R142: -1 | S142: -1 | T142: 0 | U142: =[1]升级!$B139/[2]HeroModelConfig!$M$5 -> 441.6 | V142: =[1]升级!$C139/[2]HeroModelConfig!$N$5 -> 22.08 | W142: =[1]升级!$D139/[2]HeroModelConfig!$O$5 -> 22.08 | X142: 1 | Y142: =[1]升级!$J139/[2]HeroModelConfig!$P$5 -> 0 | Z142: =[1]主表!$E140 -> 3224 | AA142: =[1]升级!$H139 -> 900 | AB142: 23 | AC142: -1 | AD142: 1390
A143: 139 | B143: 139 | C143: 5 | D143: 14 | E143: 9 | F143: 229;236;246 | G143: 炼虚期 | H143: 中 | I143: 9 | J143: 229 | K143: 236 | L143: 246 | M143: 32200 | N143: -1 | O143: -1 | P143: -1 | Q143: -1 | R143: -1 | S143: -1 | T143: 0 | U143: =[1]升级!$B140/[2]HeroModelConfig!$M$5 -> 448.8 | V143: =[1]升级!$C140/[2]HeroModelConfig!$N$5 -> 22.44 | W143: =[1]升级!$D140/[2]HeroModelConfig!$O$5 -> 22.44 | X143: 1 | Y143: =[1]升级!$J140/[2]HeroModelConfig!$P$5 -> 0 | Z143: =[1]主表!$E141 -> 3284 | AA143: =[1]升级!$H140 -> 900 | AB143: 23 | AC143: -1 | AD143: 1400
A144: 140 | B144: 140 | C144: 5 | D144: 14 | E144: 10 | F144: 229;236;247 | G144: 炼虚期 | H144: 中 | I144: 10 | J144: 229 | K144: 236 | L144: 247 | M144: 32430 | N144: 100001 | O144: 20 | P144: 1301 | Q144: 1 | R144: 1301;1302 | S144: 1;1 | T144: 0 | U144: =[1]升级!$B141/[2]HeroModelConfig!$M$5 -> 478.4 | V144: =[1]升级!$C141/[2]HeroModelConfig!$N$5 -> 23.92 | W144: =[1]升级!$D141/[2]HeroModelConfig!$O$5 -> 23.92 | X144: 1 | Y144: =[1]升级!$J141/[2]HeroModelConfig!$P$5 -> 0 | Z144: =[1]主表!$E142 -> 3508 | AA144: =[1]升级!$H141 -> 900 | AB144: 23 | AC144: 20 | AD144: 1410
A145: 141 | B145: 141 | C145: 5 | D145: 15 | E145: 1 | F145: 229;237;238 | G145: 炼虚期 | H145: 后 | I145: 1 | J145: 229 | K145: 237 | L145: 238 | M145: 34080 | N145: -1 | O145: -1 | P145: -1 | Q145: -1 | R145: =IF(I145=10,"1001;1002;1004",-1) -> -1 | S145: -1 | T145: 0 | U145: =[1]升级!$B142/[2]HeroModelConfig!$M$5 -> 486.4 | V145: =[1]升级!$C142/[2]HeroModelConfig!$N$5 -> 24.32 | W145: =[1]升级!$D142/[2]HeroModelConfig!$O$5 -> 24.32 | X145: 1 | Y145: =[1]升级!$J142/[2]HeroModelConfig!$P$5 -> 0 | Z145: =[1]主表!$E143 -> 3575 | AA145: =[1]升级!$H142 -> 900 | AB145: 24 | AC145: -1 | AD145: 1420
A146: 142 | B146: 142 | C146: 5 | D146: 15 | E146: 2 | F146: 229;237;239 | G146: 炼虚期 | H146: 后 | I146: 2 | J146: 229 | K146: 237 | L146: 239 | M146: 34320 | N146: -1 | O146: -1 | P146: -1 | Q146: -1 | R146: -1 | S146: -1 | T146: 0 | U146: =[1]升级!$B143/[2]HeroModelConfig!$M$5 -> 494.4 | V146: =[1]升级!$C143/[2]HeroModelConfig!$N$5 -> 24.72 | W146: =[1]升级!$D143/[2]HeroModelConfig!$O$5 -> 24.72 | X146: 1 | Y146: =[1]升级!$J143/[2]HeroModelConfig!$P$5 -> 0 | Z146: =[1]主表!$E144 -> 3642 | AA146: =[1]升级!$H143 -> 900 | AB146: 24 | AC146: -1 | AD146: 1430
A147: 143 | B147: 143 | C147: 5 | D147: 15 | E147: 3 | F147: 229;237;240 | G147: 炼虚期 | H147: 后 | I147: 3 | J147: 229 | K147: 237 | L147: 240 | M147: 34560 | N147: -1 | O147: -1 | P147: -1 | Q147: -1 | R147: -1 | S147: -1 | T147: 0 | U147: =[1]升级!$B144/[2]HeroModelConfig!$M$5 -> 502.4 | V147: =[1]升级!$C144/[2]HeroModelConfig!$N$5 -> 25.12 | W147: =[1]升级!$D144/[2]HeroModelConfig!$O$5 -> 25.12 | X147: 1 | Y147: =[1]升级!$J144/[2]HeroModelConfig!$P$5 -> 0 | Z147: =[1]主表!$E145 -> 3709 | AA147: =[1]升级!$H144 -> 900 | AB147: 24 | AC147: -1 | AD147: 1440
A148: 144 | B148: 144 | C148: 5 | D148: 15 | E148: 4 | F148: 229;237;241 | G148: 炼虚期 | H148: 后 | I148: 4 | J148: 229 | K148: 237 | L148: 241 | M148: 34800 | N148: -1 | O148: -1 | P148: -1 | Q148: -1 | R148: -1 | S148: -1 | T148: 0 | U148: =[1]升级!$B145/[2]HeroModelConfig!$M$5 -> 510.8 | V148: =[1]升级!$C145/[2]HeroModelConfig!$N$5 -> 25.54 | W148: =[1]升级!$D145/[2]HeroModelConfig!$O$5 -> 25.54 | X148: 1 | Y148: =[1]升级!$J145/[2]HeroModelConfig!$P$5 -> 0 | Z148: =[1]主表!$E146 -> 3780 | AA148: =[1]升级!$H145 -> 900 | AB148: 24 | AC148: -1 | AD148: 1450
A149: 145 | B149: 145 | C149: 5 | D149: 15 | E149: 5 | F149: 229;237;242 | G149: 炼虚期 | H149: 后 | I149: 5 | J149: 229 | K149: 237 | L149: 242 | M149: 35040 | N149: -1 | O149: -1 | P149: -1 | Q149: -1 | R149: -1 | S149: -1 | T149: 0 | U149: =[1]升级!$B146/[2]HeroModelConfig!$M$5 -> 519.2 | V149: =[1]升级!$C146/[2]HeroModelConfig!$N$5 -> 25.96 | W149: =[1]升级!$D146/[2]HeroModelConfig!$O$5 -> 25.96 | X149: 1 | Y149: =[1]升级!$J146/[2]HeroModelConfig!$P$5 -> 0 | Z149: =[1]主表!$E147 -> 3851 | AA149: =[1]升级!$H146 -> 900 | AB149: 24 | AC149: -1 | AD149: 1460
A150: 146 | B150: 146 | C150: 5 | D150: 15 | E150: 6 | F150: 229;237;243 | G150: 炼虚期 | H150: 后 | I150: 6 | J150: 229 | K150: 237 | L150: 243 | M150: 35280 | N150: -1 | O150: -1 | P150: -1 | Q150: -1 | R150: -1 | S150: -1 | T150: 0 | U150: =[1]升级!$B147/[2]HeroModelConfig!$M$5 -> 527.6 | V150: =[1]升级!$C147/[2]HeroModelConfig!$N$5 -> 26.38 | W150: =[1]升级!$D147/[2]HeroModelConfig!$O$5 -> 26.38 | X150: 1 | Y150: =[1]升级!$J147/[2]HeroModelConfig!$P$5 -> 0 | Z150: =[1]主表!$E148 -> 3922 | AA150: =[1]升级!$H147 -> 900 | AB150: 24 | AC150: -1 | AD150: 1470
A151: 147 | B151: 147 | C151: 5 | D151: 15 | E151: 7 | F151: 229;237;244 | G151: 炼虚期 | H151: 后 | I151: 7 | J151: 229 | K151: 237 | L151: 244 | M151: 35520 | N151: -1 | O151: -1 | P151: -1 | Q151: -1 | R151: -1 | S151: -1 | T151: 0 | U151: =[1]升级!$B148/[2]HeroModelConfig!$M$5 -> 536.4 | V151: =[1]升级!$C148/[2]HeroModelConfig!$N$5 -> 26.82 | W151: =[1]升级!$D148/[2]HeroModelConfig!$O$5 -> 26.82 | X151: 1 | Y151: =[1]升级!$J148/[2]HeroModelConfig!$P$5 -> 0 | Z151: =[1]主表!$E149 -> 3996 | AA151: =[1]升级!$H148 -> 900 | AB151: 24 | AC151: -1 | AD151: 1480
A152: 148 | B152: 148 | C152: 5 | D152: 15 | E152: 8 | F152: 229;237;245 | G152: 炼虚期 | H152: 后 | I152: 8 | J152: 229 | K152: 237 | L152: 245 | M152: 35760 | N152: -1 | O152: -1 | P152: -1 | Q152: -1 | R152: -1 | S152: -1 | T152: 0 | U152: =[1]升级!$B149/[2]HeroModelConfig!$M$5 -> 545.2 | V152: =[1]升级!$C149/[2]HeroModelConfig!$N$5 -> 27.26 | W152: =[1]升级!$D149/[2]HeroModelConfig!$O$5 -> 27.26 | X152: 1 | Y152: =[1]升级!$J149/[2]HeroModelConfig!$P$5 -> 0 | Z152: =[1]主表!$E150 -> 4071 | AA152: =[1]升级!$H149 -> 900 | AB152: 24 | AC152: -1 | AD152: 1490
A153: 149 | B153: 149 | C153: 5 | D153: 15 | E153: 9 | F153: 229;237;246 | G153: 炼虚期 | H153: 后 | I153: 9 | J153: 229 | K153: 237 | L153: 246 | M153: 36000 | N153: -1 | O153: -1 | P153: -1 | Q153: -1 | R153: -1 | S153: -1 | T153: 0 | U153: =[1]升级!$B150/[2]HeroModelConfig!$M$5 -> 554.4 | V153: =[1]升级!$C150/[2]HeroModelConfig!$N$5 -> 27.72 | W153: =[1]升级!$D150/[2]HeroModelConfig!$O$5 -> 27.72 | X153: 1 | Y153: =[1]升级!$J150/[2]HeroModelConfig!$P$5 -> 0 | Z153: =[1]主表!$E151 -> 4149 | AA153: =[1]升级!$H150 -> 900 | AB153: 24 | AC153: -1 | AD153: 1500
A154: 150 | B154: 150 | C154: 5 | D154: 15 | E154: 10 | F154: 229;237;247 | G154: 炼虚期 | H154: 后 | I154: 10 | J154: 229 | K154: 237 | L154: 247 | M154: 36240 | N154: 100001 | O154: 20 | P154: 1301 | Q154: 1 | R154: 1301;1302;1303 | S154: 1;1;1 | T154: 15000;22500 | U154: =[1]升级!$B151/[2]HeroModelConfig!$M$5 -> 627.2 | V154: =[1]升级!$C151/[2]HeroModelConfig!$N$5 -> 31.36 | W154: =[1]升级!$D151/[2]HeroModelConfig!$O$5 -> 31.36 | X154: 1 | Y154: =[1]升级!$J151/[2]HeroModelConfig!$P$5 -> 0 | Z154: =[1]主表!$E152 -> 4704 | AA154: =[1]升级!$H151 -> 1000 | AB154: 24 | AC154: 50 | AD154: 1510
A155: 151 | B155: 151 | C155: 6 | D155: 16 | E155: 1 | F155: 230;235;238 | G155: 合体期 | H155: 前 | I155: 1 | J155: 230 | K155: 235 | L155: 238 | M155: 38000 | N155: -1 | O155: -1 | P155: -1 | Q155: -1 | R155: =IF(I155=10,"1001;1002;1004",-1) -> -1 | S155: =IF(R155=-1,-1,"100;200;300") -> -1 | T155: =IF(G155=G156,0,CONCATENATE(B155*100,";",B155*150)) -> 0 | U155: =[1]升级!$B152/[2]HeroModelConfig!$M$5 -> 637.6 | V155: =[1]升级!$C152/[2]HeroModelConfig!$N$5 -> 31.88 | W155: =[1]升级!$D152/[2]HeroModelConfig!$O$5 -> 31.88 | X155: 1 | Y155: =[1]升级!$J152/[2]HeroModelConfig!$P$5 -> 0 | Z155: =[1]主表!$E153 -> 4793 | AA155: =[1]升级!$H152 -> 1000 | AB155: 25 | AC155: -1 | AD155: 1520
A156: 152 | B156: 152 | C156: 6 | D156: 16 | E156: 2 | F156: 230;235;239 | G156: 合体期 | H156: 前 | I156: 2 | J156: 230 | K156: 235 | L156: 239 | M156: 38250 | N156: -1 | O156: -1 | P156: -1 | Q156: -1 | R156: =IF(I156=10,"1001;1002;1004",-1) -> -1 | S156: =IF(R156=-1,-1,"100;200;300") -> -1 | T156: =IF(G156=G157,0,CONCATENATE(B156*100,";",B156*150)) -> 0 | U156: =[1]升级!$B153/[2]HeroModelConfig!$M$5 -> 648 | V156: =[1]升级!$C153/[2]HeroModelConfig!$N$5 -> 32.4 | W156: =[1]升级!$D153/[2]HeroModelConfig!$O$5 -> 32.4 | X156: 1 | Y156: =[1]升级!$J153/[2]HeroModelConfig!$P$5 -> 0 | Z156: =[1]主表!$E154 -> 4882 | AA156: =[1]升级!$H153 -> 1000 | AB156: 25 | AC156: -1 | AD156: 1530
A157: 153 | B157: 153 | C157: 6 | D157: 16 | E157: 3 | F157: 230;235;240 | G157: 合体期 | H157: 前 | I157: 3 | J157: 230 | K157: 235 | L157: 240 | M157: 38500 | N157: -1 | O157: -1 | P157: -1 | Q157: -1 | R157: -1 | S157: -1 | T157: 0 | U157: =[1]升级!$B154/[2]HeroModelConfig!$M$5 -> 658.8 | V157: =[1]升级!$C154/[2]HeroModelConfig!$N$5 -> 32.94 | W157: =[1]升级!$D154/[2]HeroModelConfig!$O$5 -> 32.94 | X157: 1 | Y157: =[1]升级!$J154/[2]HeroModelConfig!$P$5 -> 0 | Z157: =[1]主表!$E155 -> 4974 | AA157: =[1]升级!$H154 -> 1000 | AB157: 25 | AC157: -1 | AD157: 1540
A158: 154 | B158: 154 | C158: 6 | D158: 16 | E158: 4 | F158: 230;235;241 | G158: 合体期 | H158: 前 | I158: 4 | J158: 230 | K158: 235 | L158: 241 | M158: 38750 | N158: -1 | O158: -1 | P158: -1 | Q158: -1 | R158: -1 | S158: -1 | T158: 0 | U158: =[1]升级!$B155/[2]HeroModelConfig!$M$5 -> 669.6 | V158: =[1]升级!$C155/[2]HeroModelConfig!$N$5 -> 33.48 | W158: =[1]升级!$D155/[2]HeroModelConfig!$O$5 -> 33.48 | X158: 1 | Y158: =[1]升级!$J155/[2]HeroModelConfig!$P$5 -> 0 | Z158: =[1]主表!$E156 -> 5067 | AA158: =[1]升级!$H155 -> 1000 | AB158: 25 | AC158: -1 | AD158: 1550
A159: 155 | B159: 155 | C159: 6 | D159: 16 | E159: 5 | F159: 230;235;242 | G159: 合体期 | H159: 前 | I159: 5 | J159: 230 | K159: 235 | L159: 242 | M159: 39000 | N159: -1 | O159: -1 | P159: -1 | Q159: -1 | R159: -1 | S159: -1 | T159: 0 | U159: =[1]升级!$B156/[2]HeroModelConfig!$M$5 -> 680.8 | V159: =[1]升级!$C156/[2]HeroModelConfig!$N$5 -> 34.04 | W159: =[1]升级!$D156/[2]HeroModelConfig!$O$5 -> 34.04 | X159: 1 | Y159: =[1]升级!$J156/[2]HeroModelConfig!$P$5 -> 0 | Z159: =[1]主表!$E157 -> 5163 | AA159: =[1]升级!$H156 -> 1000 | AB159: 25 | AC159: -1 | AD159: 1560
A160: 156 | B160: 156 | C160: 6 | D160: 16 | E160: 6 | F160: 230;235;243 | G160: 合体期 | H160: 前 | I160: 6 | J160: 230 | K160: 235 | L160: 243 | M160: 39250 | N160: -1 | O160: -1 | P160: -1 | Q160: -1 | R160: -1 | S160: -1 | T160: 0 | U160: =[1]升级!$B157/[2]HeroModelConfig!$M$5 -> 692 | V160: =[1]升级!$C157/[2]HeroModelConfig!$N$5 -> 34.6 | W160: =[1]升级!$D157/[2]HeroModelConfig!$O$5 -> 34.6 | X160: 1 | Y160: =[1]升级!$J157/[2]HeroModelConfig!$P$5 -> 0 | Z160: =[1]主表!$E158 -> 5259 | AA160: =[1]升级!$H157 -> 1000 | AB160: 25 | AC160: -1 | AD160: 1570
A161: 157 | B161: 157 | C161: 6 | D161: 16 | E161: 7 | F161: 230;235;244 | G161: 合体期 | H161: 前 | I161: 7 | J161: 230 | K161: 235 | L161: 244 | M161: 39500 | N161: -1 | O161: -1 | P161: -1 | Q161: -1 | R161: -1 | S161: -1 | T161: 0 | U161: =[1]升级!$B158/[2]HeroModelConfig!$M$5 -> 703.2 | V161: =[1]升级!$C158/[2]HeroModelConfig!$N$5 -> 35.16 | W161: =[1]升级!$D158/[2]HeroModelConfig!$O$5 -> 35.16 | X161: 1 | Y161: =[1]升级!$J158/[2]HeroModelConfig!$P$5 -> 0 | Z161: =[1]主表!$E159 -> 5356 | AA161: =[1]升级!$H158 -> 1000 | AB161: 25 | AC161: -1 | AD161: 1580
A162: 158 | B162: 158 | C162: 6 | D162: 16 | E162: 8 | F162: 230;235;245 | G162: 合体期 | H162: 前 | I162: 8 | J162: 230 | K162: 235 | L162: 245 | M162: 39750 | N162: -1 | O162: -1 | P162: -1 | Q162: -1 | R162: -1 | S162: -1 | T162: 0 | U162: =[1]升级!$B159/[2]HeroModelConfig!$M$5 -> 714.8 | V162: =[1]升级!$C159/[2]HeroModelConfig!$N$5 -> 35.74 | W162: =[1]升级!$D159/[2]HeroModelConfig!$O$5 -> 35.74 | X162: 1 | Y162: =[1]升级!$J159/[2]HeroModelConfig!$P$5 -> 0 | Z162: =[1]主表!$E160 -> 5456 | AA162: =[1]升级!$H159 -> 1000 | AB162: 25 | AC162: -1 | AD162: 1590
A163: 159 | B163: 159 | C163: 6 | D163: 16 | E163: 9 | F163: 230;235;246 | G163: 合体期 | H163: 前 | I163: 9 | J163: 230 | K163: 235 | L163: 246 | M163: 40000 | N163: -1 | O163: -1 | P163: -1 | Q163: -1 | R163: -1 | S163: -1 | T163: 0 | U163: =[1]升级!$B160/[2]HeroModelConfig!$M$5 -> 726.8 | V163: =[1]升级!$C160/[2]HeroModelConfig!$N$5 -> 36.34 | W163: =[1]升级!$D160/[2]HeroModelConfig!$O$5 -> 36.34 | X163: 1 | Y163: =[1]升级!$J160/[2]HeroModelConfig!$P$5 -> 0 | Z163: =[1]主表!$E161 -> 5560 | AA163: =[1]升级!$H160 -> 1000 | AB163: 25 | AC163: -1 | AD163: 1600
A164: 160 | B164: 160 | C164: 6 | D164: 16 | E164: 10 | F164: 230;235;247 | G164: 合体期 | H164: 前 | I164: 10 | J164: 230 | K164: 235 | L164: 247 | M164: 40250 | N164: 100001 | O164: 20 | P164: 1301 | Q164: 1 | R164: 1301 | S164: 1 | T164: 0 | U164: =[1]升级!$B161/[2]HeroModelConfig!$M$5 -> 774.4 | V164: =[1]升级!$C161/[2]HeroModelConfig!$N$5 -> 38.72 | W164: =[1]升级!$D161/[2]HeroModelConfig!$O$5 -> 38.72 | X164: 1 | Y164: =[1]升级!$J161/[2]HeroModelConfig!$P$5 -> 71.24 | Z164: =[1]主表!$E162 -> 5937 | AA164: =[1]升级!$H161 -> 1000 | AB164: 25 | AC164: 20 | AD164: 1610
A165: 161 | B165: 161 | C165: 6 | D165: 17 | E165: 1 | F165: 230;236;238 | G165: 合体期 | H165: 中 | I165: 1 | J165: 230 | K165: 236 | L165: 238 | M165: 42120 | N165: -1 | O165: -1 | P165: -1 | Q165: -1 | R165: =IF(I165=10,"1001;1002;1004",-1) -> -1 | S165: -1 | T165: 0 | U165: =[1]升级!$B162/[2]HeroModelConfig!$M$5 -> 787.2 | V165: =[1]升级!$C162/[2]HeroModelConfig!$N$5 -> 39.36 | W165: =[1]升级!$D162/[2]HeroModelConfig!$O$5 -> 39.36 | X165: 1 | Y165: =[1]升级!$J162/[2]HeroModelConfig!$P$5 -> 72.58 | Z165: =[1]主表!$E163 -> 6048 | AA165: =[1]升级!$H162 -> 1000 | AB165: 26 | AC165: -1 | AD165: 1620
A166: 162 | B166: 162 | C166: 6 | D166: 17 | E166: 2 | F166: 230;236;239 | G166: 合体期 | H166: 中 | I166: 2 | J166: 230 | K166: 236 | L166: 239 | M166: 42380 | N166: -1 | O166: -1 | P166: -1 | Q166: -1 | R166: -1 | S166: -1 | T166: 0 | U166: =[1]升级!$B163/[2]HeroModelConfig!$M$5 -> 800.4 | V166: =[1]升级!$C163/[2]HeroModelConfig!$N$5 -> 40.02 | W166: =[1]升级!$D163/[2]HeroModelConfig!$O$5 -> 40.02 | X166: 1 | Y166: =[1]升级!$J163/[2]HeroModelConfig!$P$5 -> 73.96 | Z166: =[1]主表!$E164 -> 6163 | AA166: =[1]升级!$H163 -> 1000 | AB166: 26 | AC166: -1 | AD166: 1630
A167: 163 | B167: 163 | C167: 6 | D167: 17 | E167: 3 | F167: 230;236;240 | G167: 合体期 | H167: 中 | I167: 3 | J167: 230 | K167: 236 | L167: 240 | M167: 42640 | N167: -1 | O167: -1 | P167: -1 | Q167: -1 | R167: -1 | S167: -1 | T167: 0 | U167: =[1]升级!$B164/[2]HeroModelConfig!$M$5 -> 813.6 | V167: =[1]升级!$C164/[2]HeroModelConfig!$N$5 -> 40.68 | W167: =[1]升级!$D164/[2]HeroModelConfig!$O$5 -> 40.68 | X167: 1 | Y167: =[1]升级!$J164/[2]HeroModelConfig!$P$5 -> 75.34 | Z167: =[1]主表!$E165 -> 6278 | AA167: =[1]升级!$H164 -> 1000 | AB167: 26 | AC167: -1 | AD167: 1640
A168: 164 | B168: 164 | C168: 6 | D168: 17 | E168: 4 | F168: 230;236;241 | G168: 合体期 | H168: 中 | I168: 4 | J168: 230 | K168: 236 | L168: 241 | M168: 42900 | N168: -1 | O168: -1 | P168: -1 | Q168: -1 | R168: -1 | S168: -1 | T168: 0 | U168: =[1]升级!$B165/[2]HeroModelConfig!$M$5 -> 826.8 | V168: =[1]升级!$C165/[2]HeroModelConfig!$N$5 -> 41.34 | W168: =[1]升级!$D165/[2]HeroModelConfig!$O$5 -> 41.34 | X168: 1 | Y168: =[1]升级!$J165/[2]HeroModelConfig!$P$5 -> 76.73 | Z168: =[1]主表!$E166 -> 6394 | AA168: =[1]升级!$H165 -> 1000 | AB168: 26 | AC168: -1 | AD168: 1650
A169: 165 | B169: 165 | C169: 6 | D169: 17 | E169: 5 | F169: 230;236;242 | G169: 合体期 | H169: 中 | I169: 5 | J169: 230 | K169: 236 | L169: 242 | M169: 43160 | N169: -1 | O169: -1 | P169: -1 | Q169: -1 | R169: -1 | S169: -1 | T169: 0 | U169: =[1]升级!$B166/[2]HeroModelConfig!$M$5 -> 840.4 | V169: =[1]升级!$C166/[2]HeroModelConfig!$N$5 -> 42.02 | W169: =[1]升级!$D166/[2]HeroModelConfig!$O$5 -> 42.02 | X169: 1 | Y169: =[1]升级!$J166/[2]HeroModelConfig!$P$5 -> 78.16 | Z169: =[1]主表!$E167 -> 6513 | AA169: =[1]升级!$H166 -> 1000 | AB169: 26 | AC169: -1 | AD169: 1660
A170: 166 | B170: 166 | C170: 6 | D170: 17 | E170: 6 | F170: 230;236;243 | G170: 合体期 | H170: 中 | I170: 6 | J170: 230 | K170: 236 | L170: 243 | M170: 43420 | N170: -1 | O170: -1 | P170: -1 | Q170: -1 | R170: -1 | S170: -1 | T170: 0 | U170: =[1]升级!$B167/[2]HeroModelConfig!$M$5 -> 854.4 | V170: =[1]升级!$C167/[2]HeroModelConfig!$N$5 -> 42.72 | W170: =[1]升级!$D167/[2]HeroModelConfig!$O$5 -> 42.72 | X170: 1 | Y170: =[1]升级!$J167/[2]HeroModelConfig!$P$5 -> 79.63 | Z170: =[1]主表!$E168 -> 6636 | AA170: =[1]升级!$H167 -> 1000 | AB170: 26 | AC170: -1 | AD170: 1670
A171: 167 | B171: 167 | C171: 6 | D171: 17 | E171: 7 | F171: 230;236;244 | G171: 合体期 | H171: 中 | I171: 7 | J171: 230 | K171: 236 | L171: 244 | M171: 43680 | N171: -1 | O171: -1 | P171: -1 | Q171: -1 | R171: -1 | S171: -1 | T171: 0 | U171: =[1]升级!$B168/[2]HeroModelConfig!$M$5 -> 868.4 | V171: =[1]升级!$C168/[2]HeroModelConfig!$N$5 -> 43.42 | W171: =[1]升级!$D168/[2]HeroModelConfig!$O$5 -> 43.42 | X171: 1 | Y171: =[1]升级!$J168/[2]HeroModelConfig!$P$5 -> 81.11 | Z171: =[1]主表!$E169 -> 6759 | AA171: =[1]升级!$H168 -> 1000 | AB171: 26 | AC171: -1 | AD171: 1680
A172: 168 | B172: 168 | C172: 6 | D172: 17 | E172: 8 | F172: 230;236;245 | G172: 合体期 | H172: 中 | I172: 8 | J172: 230 | K172: 236 | L172: 245 | M172: 43940 | N172: -1 | O172: -1 | P172: -1 | Q172: -1 | R172: -1 | S172: -1 | T172: 0 | U172: =[1]升级!$B169/[2]HeroModelConfig!$M$5 -> 882.8 | V172: =[1]升级!$C169/[2]HeroModelConfig!$N$5 -> 44.14 | W172: =[1]升级!$D169/[2]HeroModelConfig!$O$5 -> 44.14 | X172: 1 | Y172: =[1]升级!$J169/[2]HeroModelConfig!$P$5 -> 82.63 | Z172: =[1]主表!$E170 -> 6886 | AA172: =[1]升级!$H169 -> 1000 | AB172: 26 | AC172: -1 | AD172: 1690
A173: 169 | B173: 169 | C173: 6 | D173: 17 | E173: 9 | F173: 230;236;246 | G173: 合体期 | H173: 中 | I173: 9 | J173: 230 | K173: 236 | L173: 246 | M173: 44200 | N173: -1 | O173: -1 | P173: -1 | Q173: -1 | R173: -1 | S173: -1 | T173: 0 | U173: =[1]升级!$B170/[2]HeroModelConfig!$M$5 -> 897.2 | V173: =[1]升级!$C170/[2]HeroModelConfig!$N$5 -> 44.86 | W173: =[1]升级!$D170/[2]HeroModelConfig!$O$5 -> 44.86 | X173: 1 | Y173: =[1]升级!$J170/[2]HeroModelConfig!$P$5 -> 84.16 | Z173: =[1]主表!$E171 -> 7013 | AA173: =[1]升级!$H170 -> 1000 | AB173: 26 | AC173: -1 | AD173: 1700
A174: 170 | B174: 170 | C174: 6 | D174: 17 | E174: 10 | F174: 230;236;247 | G174: 合体期 | H174: 中 | I174: 10 | J174: 230 | K174: 236 | L174: 247 | M174: 44460 | N174: 100001 | O174: 20 | P174: 1301 | Q174: 1 | R174: 1301;1302 | S174: 1;1 | T174: 0 | U174: =[1]升级!$B171/[2]HeroModelConfig!$M$5 -> 956.4 | V174: =[1]升级!$C171/[2]HeroModelConfig!$N$5 -> 47.82 | W174: =[1]升级!$D171/[2]HeroModelConfig!$O$5 -> 47.82 | X174: 1 | Y174: =[1]升级!$J171/[2]HeroModelConfig!$P$5 -> 104.89 | Z174: =[1]主表!$E172 -> 7492 | AA174: =[1]升级!$H171 -> 1000 | AB174: 26 | AC174: 20 | AD174: 1710
A175: 171 | B175: 171 | C175: 6 | D175: 18 | E175: 1 | F175: 230;237;238 | G175: 合体期 | H175: 后 | I175: 1 | J175: 230 | K175: 237 | L175: 238 | M175: 46440 | N175: -1 | O175: -1 | P175: -1 | Q175: -1 | R175: =IF(I175=10,"1001;1002;1004",-1) -> -1 | S175: -1 | T175: 0 | U175: =[1]升级!$B172/[2]HeroModelConfig!$M$5 -> 972 | V175: =[1]升级!$C172/[2]HeroModelConfig!$N$5 -> 48.6 | W175: =[1]升级!$D172/[2]HeroModelConfig!$O$5 -> 48.6 | X175: 1 | Y175: =[1]升级!$J172/[2]HeroModelConfig!$P$5 -> 106.82 | Z175: =[1]主表!$E173 -> 7630 | AA175: =[1]升级!$H172 -> 1000 | AB175: 27 | AC175: -1 | AD175: 1720
A176: 172 | B176: 172 | C176: 6 | D176: 18 | E176: 2 | F176: 230;237;239 | G176: 合体期 | H176: 后 | I176: 2 | J176: 230 | K176: 237 | L176: 239 | M176: 46710 | N176: -1 | O176: -1 | P176: -1 | Q176: -1 | R176: -1 | S176: -1 | T176: 0 | U176: =[1]升级!$B173/[2]HeroModelConfig!$M$5 -> 988 | V176: =[1]升级!$C173/[2]HeroModelConfig!$N$5 -> 49.4 | W176: =[1]升级!$D173/[2]HeroModelConfig!$O$5 -> 49.4 | X176: 1 | Y176: =[1]升级!$J173/[2]HeroModelConfig!$P$5 -> 108.81 | Z176: =[1]主表!$E174 -> 7772 | AA176: =[1]升级!$H173 -> 1000 | AB176: 27 | AC176: -1 | AD176: 1730
A177: 173 | B177: 173 | C177: 6 | D177: 18 | E177: 3 | F177: 230;237;240 | G177: 合体期 | H177: 后 | I177: 3 | J177: 230 | K177: 237 | L177: 240 | M177: 46980 | N177: -1 | O177: -1 | P177: -1 | Q177: -1 | R177: -1 | S177: -1 | T177: 0 | U177: =[1]升级!$B174/[2]HeroModelConfig!$M$5 -> 1004.4 | V177: =[1]升级!$C174/[2]HeroModelConfig!$N$5 -> 50.22 | W177: =[1]升级!$D174/[2]HeroModelConfig!$O$5 -> 50.22 | X177: 1 | Y177: =[1]升级!$J174/[2]HeroModelConfig!$P$5 -> 110.85 | Z177: =[1]主表!$E175 -> 7918 | AA177: =[1]升级!$H174 -> 1000 | AB177: 27 | AC177: -1 | AD177: 1740
A178: 174 | B178: 174 | C178: 6 | D178: 18 | E178: 4 | F178: 230;237;241 | G178: 合体期 | H178: 后 | I178: 4 | J178: 230 | K178: 237 | L178: 241 | M178: 47250 | N178: -1 | O178: -1 | P178: -1 | Q178: -1 | R178: -1 | S178: -1 | T178: 0 | U178: =[1]升级!$B175/[2]HeroModelConfig!$M$5 -> 1020.8 | V178: =[1]升级!$C175/[2]HeroModelConfig!$N$5 -> 51.04 | W178: =[1]升级!$D175/[2]HeroModelConfig!$O$5 -> 51.04 | X178: 1 | Y178: =[1]升级!$J175/[2]HeroModelConfig!$P$5 -> 112.9 | Z178: =[1]主表!$E176 -> 8064 | AA178: =[1]升级!$H175 -> 1000 | AB178: 27 | AC178: -1 | AD178: 1750
A179: 175 | B179: 175 | C179: 6 | D179: 18 | E179: 5 | F179: 230;237;242 | G179: 合体期 | H179: 后 | I179: 5 | J179: 230 | K179: 237 | L179: 242 | M179: 47520 | N179: -1 | O179: -1 | P179: -1 | Q179: -1 | R179: -1 | S179: -1 | T179: 0 | U179: =[1]升级!$B176/[2]HeroModelConfig!$M$5 -> 1037.6 | V179: =[1]升级!$C176/[2]HeroModelConfig!$N$5 -> 51.88 | W179: =[1]升级!$D176/[2]HeroModelConfig!$O$5 -> 51.88 | X179: 1 | Y179: =[1]升级!$J176/[2]HeroModelConfig!$P$5 -> 115 | Z179: =[1]主表!$E177 -> 8214 | AA179: =[1]升级!$H176 -> 1000 | AB179: 27 | AC179: -1 | AD179: 1760
A180: 176 | B180: 176 | C180: 6 | D180: 18 | E180: 6 | F180: 230;237;243 | G180: 合体期 | H180: 后 | I180: 6 | J180: 230 | K180: 237 | L180: 243 | M180: 47790 | N180: -1 | O180: -1 | P180: -1 | Q180: -1 | R180: -1 | S180: -1 | T180: 0 | U180: =[1]升级!$B177/[2]HeroModelConfig!$M$5 -> 1054.8 | V180: =[1]升级!$C177/[2]HeroModelConfig!$N$5 -> 52.74 | W180: =[1]升级!$D177/[2]HeroModelConfig!$O$5 -> 52.74 | X180: 1 | Y180: =[1]升级!$J177/[2]HeroModelConfig!$P$5 -> 117.15 | Z180: =[1]主表!$E178 -> 8368 | AA180: =[1]升级!$H177 -> 1000 | AB180: 27 | AC180: -1 | AD180: 1770
A181: 177 | B181: 177 | C181: 6 | D181: 18 | E181: 7 | F181: 230;237;244 | G181: 合体期 | H181: 后 | I181: 7 | J181: 230 | K181: 237 | L181: 244 | M181: 48060 | N181: -1 | O181: -1 | P181: -1 | Q181: -1 | R181: -1 | S181: -1 | T181: 0 | U181: =[1]升级!$B178/[2]HeroModelConfig!$M$5 -> 1072 | V181: =[1]升级!$C178/[2]HeroModelConfig!$N$5 -> 53.6 | W181: =[1]升级!$D178/[2]HeroModelConfig!$O$5 -> 53.6 | X181: 1 | Y181: =[1]升级!$J178/[2]HeroModelConfig!$P$5 -> 119.31 | Z181: =[1]主表!$E179 -> 8522 | AA181: =[1]升级!$H178 -> 1000 | AB181: 27 | AC181: -1 | AD181: 1780
A182: 178 | B182: 178 | C182: 6 | D182: 18 | E182: 8 | F182: 230;237;245 | G182: 合体期 | H182: 后 | I182: 8 | J182: 230 | K182: 237 | L182: 245 | M182: 48330 | N182: -1 | O182: -1 | P182: -1 | Q182: -1 | R182: -1 | S182: -1 | T182: 0 | U182: =[1]升级!$B179/[2]HeroModelConfig!$M$5 -> 1089.6 | V182: =[1]升级!$C179/[2]HeroModelConfig!$N$5 -> 54.48 | W182: =[1]升级!$D179/[2]HeroModelConfig!$O$5 -> 54.48 | X182: 1 | Y182: =[1]升级!$J179/[2]HeroModelConfig!$P$5 -> 121.52 | Z182: =[1]主表!$E180 -> 8680 | AA182: =[1]升级!$H179 -> 1000 | AB182: 27 | AC182: -1 | AD182: 1790
A183: 179 | B183: 179 | C183: 6 | D183: 18 | E183: 9 | F183: 230;237;246 | G183: 合体期 | H183: 后 | I183: 9 | J183: 230 | K183: 237 | L183: 246 | M183: 48600 | N183: -1 | O183: -1 | P183: -1 | Q183: -1 | R183: -1 | S183: -1 | T183: 0 | U183: =[1]升级!$B180/[2]HeroModelConfig!$M$5 -> 1107.6 | V183: =[1]升级!$C180/[2]HeroModelConfig!$N$5 -> 55.38 | W183: =[1]升级!$D180/[2]HeroModelConfig!$O$5 -> 55.38 | X183: 1 | Y183: =[1]升级!$J180/[2]HeroModelConfig!$P$5 -> 123.79 | Z183: =[1]主表!$E181 -> 8842 | AA183: =[1]升级!$H180 -> 1000 | AB183: 27 | AC183: -1 | AD183: 1800
A184: 180 | B184: 180 | C184: 6 | D184: 18 | E184: 10 | F184: 230;237;247 | G184: 合体期 | H184: 后 | I184: 10 | J184: 230 | K184: 237 | L184: 247 | M184: 48870 | N184: 100001 | O184: 20 | P184: 1301 | Q184: 1 | R184: 1301;1302;1303 | S184: 1;1;1 | T184: 18000;27000 | U184: =[1]升级!$B181/[2]HeroModelConfig!$M$5 -> 1253.6 | V184: =[1]升级!$C181/[2]HeroModelConfig!$N$5 -> 62.68 | W184: =[1]升级!$D181/[2]HeroModelConfig!$O$5 -> 62.68 | X184: 1 | Y184: =[1]升级!$J181/[2]HeroModelConfig!$P$5 -> 200.58 | Z184: =[1]主表!$E182 -> 10029 | AA184: =[1]升级!$H181 -> 1000 | AB184: 27 | AC184: 50 | AD184: 1810
A185: 181 | B185: 181 | C185: 7 | D185: 19 | E185: 1 | F185: 231;235;238 | G185: 大乘期 | H185: 前 | I185: 1 | J185: 231 | K185: 235 | L185: 238 | M185: 50960 | N185: -1 | O185: -1 | P185: -1 | Q185: -1 | R185: =IF(I185=10,"1001;1002;1004",-1) -> -1 | S185: =IF(R185=-1,-1,"100;200;300") -> -1 | T185: =IF(G185=G186,0,CONCATENATE(B185*100,";",B185*150)) -> 0 | U185: =[1]升级!$B182/[2]HeroModelConfig!$M$5 -> 1274.4 | V185: =[1]升级!$C182/[2]HeroModelConfig!$N$5 -> 63.72 | W185: =[1]升级!$D182/[2]HeroModelConfig!$O$5 -> 63.72 | X185: 1 | Y185: =[1]升级!$J182/[2]HeroModelConfig!$P$5 -> 204.32 | Z185: =[1]主表!$E183 -> 10216 | AA185: =[1]升级!$H182 -> 1000 | AB185: 28 | AC185: -1 | AD185: 1820
A186: 182 | B186: 182 | C186: 7 | D186: 19 | E186: 2 | F186: 231;235;239 | G186: 大乘期 | H186: 前 | I186: 2 | J186: 231 | K186: 235 | L186: 239 | M186: 51240 | N186: -1 | O186: -1 | P186: -1 | Q186: -1 | R186: =IF(I186=10,"1001;1002;1004",-1) -> -1 | S186: =IF(R186=-1,-1,"100;200;300") -> -1 | T186: =IF(G186=G187,0,CONCATENATE(B186*100,";",B186*150)) -> 0 | U186: =[1]升级!$B183/[2]HeroModelConfig!$M$5 -> 1295.2 | V186: =[1]升级!$C183/[2]HeroModelConfig!$N$5 -> 64.76 | W186: =[1]升级!$D183/[2]HeroModelConfig!$O$5 -> 64.76 | X186: 1 | Y186: =[1]升级!$J183/[2]HeroModelConfig!$P$5 -> 208.1 | Z186: =[1]主表!$E184 -> 10405 | AA186: =[1]升级!$H183 -> 1000 | AB186: 28 | AC186: -1 | AD186: 1830
A187: 183 | B187: 183 | C187: 7 | D187: 19 | E187: 3 | F187: 231;235;240 | G187: 大乘期 | H187: 前 | I187: 3 | J187: 231 | K187: 235 | L187: 240 | M187: 51520 | N187: -1 | O187: -1 | P187: -1 | Q187: -1 | R187: -1 | S187: -1 | T187: 0 | U187: =[1]升级!$B184/[2]HeroModelConfig!$M$5 -> 1316.8 | V187: =[1]升级!$C184/[2]HeroModelConfig!$N$5 -> 65.84 | W187: =[1]升级!$D184/[2]HeroModelConfig!$O$5 -> 65.84 | X187: 1 | Y187: =[1]升级!$J184/[2]HeroModelConfig!$P$5 -> 212 | Z187: =[1]主表!$E185 -> 10600 | AA187: =[1]升级!$H184 -> 1000 | AB187: 28 | AC187: -1 | AD187: 1840
A188: 184 | B188: 184 | C188: 7 | D188: 19 | E188: 4 | F188: 231;235;241 | G188: 大乘期 | H188: 前 | I188: 4 | J188: 231 | K188: 235 | L188: 241 | M188: 51800 | N188: -1 | O188: -1 | P188: -1 | Q188: -1 | R188: -1 | S188: -1 | T188: 0 | U188: =[1]升级!$B185/[2]HeroModelConfig!$M$5 -> 1338.4 | V188: =[1]升级!$C185/[2]HeroModelConfig!$N$5 -> 66.92 | W188: =[1]升级!$D185/[2]HeroModelConfig!$O$5 -> 66.92 | X188: 1 | Y188: =[1]升级!$J185/[2]HeroModelConfig!$P$5 -> 215.92 | Z188: =[1]主表!$E186 -> 10796 | AA188: =[1]升级!$H185 -> 1000 | AB188: 28 | AC188: -1 | AD188: 1850
A189: 185 | B189: 185 | C189: 7 | D189: 19 | E189: 5 | F189: 231;235;242 | G189: 大乘期 | H189: 前 | I189: 5 | J189: 231 | K189: 235 | L189: 242 | M189: 52080 | N189: -1 | O189: -1 | P189: -1 | Q189: -1 | R189: -1 | S189: -1 | T189: 0 | U189: =[1]升级!$B186/[2]HeroModelConfig!$M$5 -> 1360.4 | V189: =[1]升级!$C186/[2]HeroModelConfig!$N$5 -> 68.02 | W189: =[1]升级!$D186/[2]HeroModelConfig!$O$5 -> 68.02 | X189: 1 | Y189: =[1]升级!$J186/[2]HeroModelConfig!$P$5 -> 219.94 | Z189: =[1]主表!$E187 -> 10997 | AA189: =[1]升级!$H186 -> 1000 | AB189: 28 | AC189: -1 | AD189: 1860
A190: 186 | B190: 186 | C190: 7 | D190: 19 | E190: 6 | F190: 231;235;243 | G190: 大乘期 | H190: 前 | I190: 6 | J190: 231 | K190: 235 | L190: 243 | M190: 52360 | N190: -1 | O190: -1 | P190: -1 | Q190: -1 | R190: -1 | S190: -1 | T190: 0 | U190: =[1]升级!$B187/[2]HeroModelConfig!$M$5 -> 1382.8 | V190: =[1]升级!$C187/[2]HeroModelConfig!$N$5 -> 69.14 | W190: =[1]升级!$D187/[2]HeroModelConfig!$O$5 -> 69.14 | X190: 1 | Y190: =[1]升级!$J187/[2]HeroModelConfig!$P$5 -> 224.02 | Z190: =[1]主表!$E188 -> 11201 | AA190: =[1]升级!$H187 -> 1000 | AB190: 28 | AC190: -1 | AD190: 1870
A191: 187 | B191: 187 | C191: 7 | D191: 19 | E191: 7 | F191: 231;235;244 | G191: 大乘期 | H191: 前 | I191: 7 | J191: 231 | K191: 235 | L191: 244 | M191: 52750 | N191: -1 | O191: -1 | P191: -1 | Q191: -1 | R191: -1 | S191: -1 | T191: 0 | U191: =[1]升级!$B188/[2]HeroModelConfig!$M$5 -> 1405.6 | V191: =[1]升级!$C188/[2]HeroModelConfig!$N$5 -> 70.28 | W191: =[1]升级!$D188/[2]HeroModelConfig!$O$5 -> 70.28 | X191: 1 | Y191: =[1]升级!$J188/[2]HeroModelConfig!$P$5 -> 228.18 | Z191: =[1]主表!$E189 -> 11409 | AA191: =[1]升级!$H188 -> 1000 | AB191: 28 | AC191: -1 | AD191: 1884
A192: 188 | B192: 188 | C192: 7 | D192: 19 | E192: 8 | F192: 231;235;245 | G192: 大乘期 | H192: 前 | I192: 8 | J192: 231 | K192: 235 | L192: 245 | M192: 53980 | N192: -1 | O192: -1 | P192: -1 | Q192: -1 | R192: -1 | S192: -1 | T192: 0 | U192: =[1]升级!$B189/[2]HeroModelConfig!$M$5 -> 1428.8 | V192: =[1]升级!$C189/[2]HeroModelConfig!$N$5 -> 71.44 | W192: =[1]升级!$D189/[2]HeroModelConfig!$O$5 -> 71.44 | X192: 1 | Y192: =[1]升级!$J189/[2]HeroModelConfig!$P$5 -> 232.42 | Z192: =[1]主表!$E190 -> 11621 | AA192: =[1]升级!$H189 -> 1000 | AB192: 28 | AC192: -1 | AD192: 1928
A193: 189 | B193: 189 | C193: 7 | D193: 19 | E193: 9 | F193: 231;235;246 | G193: 大乘期 | H193: 前 | I193: 9 | J193: 231 | K193: 235 | L193: 246 | M193: 55210 | N193: -1 | O193: -1 | P193: -1 | Q193: -1 | R193: -1 | S193: -1 | T193: 0 | U193: =[1]升级!$B190/[2]HeroModelConfig!$M$5 -> 1452.4 | V193: =[1]升级!$C190/[2]HeroModelConfig!$N$5 -> 72.62 | W193: =[1]升级!$D190/[2]HeroModelConfig!$O$5 -> 72.62 | X193: 1 | Y193: =[1]升级!$J190/[2]HeroModelConfig!$P$5 -> 236.74 | Z193: =[1]主表!$E191 -> 11837 | AA193: =[1]升级!$H190 -> 1000 | AB193: 28 | AC193: -1 | AD193: 1972
A194: 190 | B194: 190 | C194: 7 | D194: 19 | E194: 10 | F194: 231;235;247 | G194: 大乘期 | H194: 前 | I194: 10 | J194: 231 | K194: 235 | L194: 247 | M194: 56500 | N194: 100001 | O194: 20 | P194: 1301 | Q194: 1 | R194: 1301 | S194: 1 | T194: 0 | U194: =[1]升级!$B191/[2]HeroModelConfig!$M$5 -> 1548 | V194: =[1]升级!$C191/[2]HeroModelConfig!$N$5 -> 77.4 | W194: =[1]升级!$D191/[2]HeroModelConfig!$O$5 -> 77.4 | X194: 1 | Y194: =[1]升级!$J191/[2]HeroModelConfig!$P$5 -> 278.12 | Z194: =[1]主表!$E192 -> 12642 | AA194: =[1]升级!$H191 -> 1000 | AB194: 28 | AC194: 20 | AD194: 2018
A195: 191 | B195: 191 | C195: 7 | D195: 20 | E195: 1 | F195: 231;236;238 | G195: 大乘期 | H195: 中 | I195: 1 | J195: 231 | K195: 236 | L195: 238 | M195: 59880 | N195: -1 | O195: -1 | P195: -1 | Q195: -1 | R195: =IF(I195=10,"1001;1002;1004",-1) -> -1 | S195: -1 | T195: 0 | U195: =[1]升级!$B192/[2]HeroModelConfig!$M$5 -> 1573.6 | V195: =[1]升级!$C192/[2]HeroModelConfig!$N$5 -> 78.68 | W195: =[1]升级!$D192/[2]HeroModelConfig!$O$5 -> 78.68 | X195: 1 | Y195: =[1]升级!$J192/[2]HeroModelConfig!$P$5 -> 283.29 | Z195: =[1]主表!$E193 -> 12877 | AA195: =[1]升级!$H192 -> 1000 | AB195: 29 | AC195: -1 | AD195: 2065
A196: 192 | B196: 192 | C196: 7 | D196: 20 | E196: 2 | F196: 231;236;239 | G196: 大乘期 | H196: 中 | I196: 2 | J196: 231 | K196: 236 | L196: 239 | M196: 61270 | N196: -1 | O196: -1 | P196: -1 | Q196: -1 | R196: -1 | S196: -1 | T196: 0 | U196: =[1]升级!$B193/[2]HeroModelConfig!$M$5 -> 1599.2 | V196: =[1]升级!$C193/[2]HeroModelConfig!$N$5 -> 79.96 | W196: =[1]升级!$D193/[2]HeroModelConfig!$O$5 -> 79.96 | X196: 1 | Y196: =[1]升级!$J193/[2]HeroModelConfig!$P$5 -> 288.49 | Z196: =[1]主表!$E194 -> 13113 | AA196: =[1]升级!$H193 -> 1000 | AB196: 29 | AC196: -1 | AD196: 2113
A197: 193 | B197: 193 | C197: 7 | D197: 20 | E197: 3 | F197: 231;236;240 | G197: 大乘期 | H197: 中 | I197: 3 | J197: 231 | K197: 236 | L197: 240 | M197: 62720 | N197: -1 | O197: -1 | P197: -1 | Q197: -1 | R197: -1 | S197: -1 | T197: 0 | U197: =[1]升级!$B194/[2]HeroModelConfig!$M$5 -> 1625.6 | V197: =[1]升级!$C194/[2]HeroModelConfig!$N$5 -> 81.28 | W197: =[1]升级!$D194/[2]HeroModelConfig!$O$5 -> 81.28 | X197: 1 | Y197: =[1]升级!$J194/[2]HeroModelConfig!$P$5 -> 293.85 | Z197: =[1]主表!$E195 -> 13357 | AA197: =[1]升级!$H194 -> 1000 | AB197: 29 | AC197: -1 | AD197: 2163
A198: 194 | B198: 194 | C198: 7 | D198: 20 | E198: =I198 -> 4 | F198: =_xlfn.TEXTJOIN(";",1,J198:L198) -> 231;236;241 | G198: 大乘期 | H198: 中 | I198: 4 | J198: 231 | K198: 236 | L198: 241 | M198: =INT(0.1*AB198*AD198)*10 -> 64170 | N198: =IF(I198=10,100001,-1) -> -1 | O198: =IF(N198=-1,-1,20) -> -1 | P198: -1 | Q198: -1 | R198: -1 | S198: -1 | T198: 0 | U198: =[1]升级!$B195/[2]HeroModelConfig!$M$5 -> 1652.4 | V198: =[1]升级!$C195/[2]HeroModelConfig!$N$5 -> 82.62 | W198: =[1]升级!$D195/[2]HeroModelConfig!$O$5 -> 82.62 | X198: 1 | Y198: =[1]升级!$J195/[2]HeroModelConfig!$P$5 -> 299.31 | Z198: =[1]主表!$E196 -> 13605 | AA198: =[1]升级!$H195 -> 1000 | AB198: 29 | AC198: -1 | AD198: 2213
A199: 195 | B199: 195 | C199: 7 | D199: 20 | E199: 5 | F199: 231;236;242 | G199: 大乘期 | H199: 中 | I199: 5 | J199: 231 | K199: 236 | L199: 242 | M199: 65680 | N199: -1 | O199: -1 | P199: -1 | Q199: -1 | R199: -1 | S199: -1 | T199: 0 | U199: =[1]升级!$B196/[2]HeroModelConfig!$M$5 -> 1679.6 | V199: =[1]升级!$C196/[2]HeroModelConfig!$N$5 -> 83.98 | W199: =[1]升级!$D196/[2]HeroModelConfig!$O$5 -> 83.98 | X199: 1 | Y199: =[1]升级!$J196/[2]HeroModelConfig!$P$5 -> 304.85 | Z199: =[1]主表!$E197 -> 13857 | AA199: =[1]升级!$H196 -> 1000 | AB199: 29 | AC199: -1 | AD199: =MAX(AD198+10,ROUND(10^(B199*0.01+1.405),0)) -> 2265
A200: 196 | B200: 196 | C200: 7 | D200: 20 | E200: 6 | F200: 231;236;243 | G200: 大乘期 | H200: 中 | I200: 6 | J200: 231 | K200: 236 | L200: 243 | M200: 67190 | N200: -1 | O200: -1 | P200: -1 | Q200: -1 | R200: -1 | S200: -1 | T200: 0 | U200: =[1]升级!$B197/[2]HeroModelConfig!$M$5 -> 1707.2 | V200: =[1]升级!$C197/[2]HeroModelConfig!$N$5 -> 85.36 | W200: =[1]升级!$D197/[2]HeroModelConfig!$O$5 -> 85.36 | X200: 1 | Y200: =[1]升级!$J197/[2]HeroModelConfig!$P$5 -> 310.49 | Z200: =[1]主表!$E198 -> 14113 | AA200: =[1]升级!$H197 -> 1000 | AB200: 29 | AC200: -1 | AD200: 2317
... 104 more rows
